Workbook

Sheet Rice straw
A1: Experimental Runs | B1: Temperature (℃) | C1: Heating Rate (℃/min) | D1: Residence time (min) | F1: Solid Yield (%) | G1: Condensate Yield (%) | H1: Gas Yield (%) | I1: Energy Density | J1: Energy Yield (%) | K1: HHV (MJ/Kg) | L1: Hemicellulose (%) | M1: Cellulose (%) | N1: Lignin (%) | O1: Moisture (wt%) | P1: Ash (wt%) | Q1: Carbon (wt%) | R1: Hydrogen (wt%) | S1: Nitrogen (wt%) | T1: Sulfur (wt%) | U1: Oxygen (wt%) | V1: H/C | W1: O/C
A2: 1 | B2: 215 | C2: 5 | D2: 30 | F2: 95 | G2: 5 | H2: =100-F2-G2 -> 0 | I2: =K2/13.7 -> 1.069276168 | J2: =I2*F2 -> 101.5812359 | K2: 14.6490835 | L2: 22.1 | M2: 38.6 | N2: 23.09 | O2: 3.5 | P2: 16.21 | Q2: 36.78 | R2: 5.135 | S2: 0.71 | T2: 0.23 | U2: =100-P2-Q2-R2-S2-T2 -> 40.935 | V2: =R2/Q2 -> 0.1396139206 | W2: =U2/Q2 -> 1.112969005
A3: 2 | B3: 230 | C3: 5 | D3: 30 | F3: 90 | G3: 7 | H3: =100-F3-G3 -> 3 | I3: =K3/13.7 -> 1.101245226 | J3: =I3*F3 -> 99.11207036 | K3: 15.0870596 | L3: 20.5 | M3: 39.5 | N3: 23.67 | O3: 3.1 | P3: 16.33 | Q3: 38.16 | R3: 4.974 | S3: 0.79 | T3: 0.232 | U3: =100-P3-Q3-R3-S3-T3 -> 39.514 | V3: =R3/Q3 -> 0.1303459119 | W3: =U3/Q3 -> 1.03548218
A4: 3 | B4: 245 | C4: 5 | D4: 30 | F4: 85 | G4: 12 | H4: 3 | I4: 1.142369591 | J4: 97.10141526 | K4: 15.6504634 | L4: 16.9 | M4: 42.6 | N4: 23.72 | O4: 2.5 | P4: 16.78 | Q4: 39.78 | R4: 4.788 | S4: 0.88 | T4: 0.302 | U4: 37.47 | V4: 0.120361991 | W4: 0.9419306184
A5: 4 | B5: 260 | C5: 5 | D5: 30 | F5: 79.5 | G5: 15.5 | H5: 5 | I5: 1.168749934 | J5: 92.91561978 | K5: 16.0118741 | L5: 11.2 | M5: 43.8 | N5: 27.79 | O5: 2.1 | P5: 17.21 | Q5: 41.26 | R5: 4.514 | S5: 0.92 | T5: 0.277 | U5: 35.819 | V5: 0.1094037809 | W5: 0.8681289384
A6: 5 | B6: 275 | C6: 5 | D6: 30 | F6: 74 | G6: 20 | H6: 6 | I6: 1.214175949 | J6: 89.84902022 | K6: 16.6342105 | L6: 8.4 | M6: 29 | N6: 45.02 | O6: 1.8 | P6: 17.58 | Q6: 42.73 | R6: 4.437 | S6: 1.08 | T6: 0.294 | U6: 33.879 | V6: 0.1038380529 | W6: 0.7928621577
A7: 6 | B7: 290 | C7: 5 | D7: 30 | F7: 67 | G7: 22 | H7: 11 | I7: 1.245985401 | J7: 83.4810219 | K7: 17.07 | L7: 5.3 | M7: 26.8 | N7: 49.62 | O7: 1.6 | P7: 18.17 | Q7: 44.77 | R7: 4.348 | S7: 1.12 | T7: 0.306 | U7: 31.286 | V7: 0.09711860621 | W7: 0.6988161715
A8: 7 | B8: 215 | C8: 10 | D8: 30 | F8: 94 | G8: 6 | H8: 0 | I8: 1.079570467 | J8: 101.4796239 | K8: 14.7901154 | L8: 21.9 | M8: 38.5 | N8: 23.38 | O8: 3.4 | P8: 16.22 | Q8: 36.84 | R8: 5.224 | S8: 0.71 | T8: 0.224 | U8: 40.782 | V8: 0.1418023887 | W8: 1.107003257
A9: 8 | B9: 230 | C9: 10 | D9: 30 | F9: 91 | G9: 9 | H9: 0 | I9: 1.124831438 | J9: 102.3596609 | K9: 15.4101907 | L9: 20.8 | M9: 39.6 | N9: 23.29 | O9: 3.2 | P9: 16.31 | Q9: 38.99 | R9: 4.933 | S9: 0.81 | T9: 0.234 | U9: 38.723 | V9: 0.1265196204 | W9: 0.9931520903
A10: 9 | B10: 245 | C10: 10 | D10: 30 | F10: 84 | G10: 13 | H10: 3 | I10: 1.166424642 | J10: 97.97966996 | K10: 15.9800176 | L10: 17.3 | M10: 42.8 | N10: 23.46 | O10: 2.65 | P10: 16.44 | Q10: 40.57 | R10: 4.799 | S10: 0.86 | T10: 0.277 | U10: 37.054 | V10: 0.1182893764 | W10: 0.9133349766
A11: 10 | B11: 260 | C11: 10 | D11: 30 | F11: 78.5 | G11: 17 | H11: 4.5 | I11: 1.19207054 | J11: 93.5775374 | K11: 16.3313664 | L11: 11.4 | M11: 43.7 | N11: 27.65 | O11: 2.1 | P11: 17.25 | Q11: 41.68 | R11: 4.615 | S11: 0.91 | T11: 0.261 | U11: 35.284 | V11: 0.1107245681 | W11: 0.8465451056
A12: 11 | B12: 275 | C12: 10 | D12: 30 | F12: 73 | G12: 22 | H12: 5 | I12: 1.215947701 | J12: 88.76418215 | K12: 16.6584835 | L12: 8.3 | M12: 28.8 | N12: 45.27 | O12: 1.85 | P12: 17.63 | Q12: 42.77 | R12: 4.439 | S12: 1.03 | T12: 0.308 | U12: 33.823 | V12: 0.1037877017 | W12: 0.7908113163
A13: 12 | B13: 290 | C13: 10 | D13: 30 | F13: 66.5 | G13: 25 | H13: 8.5 | I13: 1.259124088 | J13: 83.73175182 | K13: 17.25 | L13: 5.4 | M13: 26.7 | N13: 49.75 | O13: 1.67 | P13: 18.15 | Q13: 44.93 | R13: 4.337 | S13: 1.14 | T13: 0.24 | U13: 31.203 | V13: 0.09652793234 | W13: 0.6944803027
A14: 13 | B14: 215 | C14: 5 | D14: 60 | F14: 91 | G14: 7 | H14: 2 | I14: 1.091749569 | J14: 99.34921081 | K14: 14.9569691 | L14: 21.6 | M14: 38.8 | N14: 23.26 | O14: 3.44 | P14: 16.34 | Q14: 37.41 | R14: 5.136 | S14: 0.73 | T14: 0.261 | U14: 40.123 | V14: 0.1372894948 | W14: 1.072520716
A15: 14 | B15: 230 | C15: 5 | D15: 60 | F15: 86 | G15: 13 | H15: 1 | I15: 1.126242044 | J15: 96.85681577 | K15: 15.429516 | L15: 20.2 | M15: 39.9 | N15: 23.45 | O15: 2.74 | P15: 16.45 | Q15: 39.14 | R15: 4.879 | S15: 0.79 | T15: 0.273 | U15: 38.468 | V15: 0.1246550843 | W15: 0.9828308636
A16: 15 | B16: 245 | C16: 5 | D16: 60 | F16: 80.5 | G16: 15.5 | H16: 4 | I16: 1.19666827 | J16: 96.33179574 | K16: 16.3943553 | L16: 16.7 | M16: 42.7 | N16: 23.5 | O16: 2.36 | P16: 17.1 | Q16: 41.82 | R16: 4.623 | S16: 0.88 | T16: 0.298 | U16: 35.279 | V16: 0.1105451937 | W16: 0.843591583
A17: 16 | B17: 260 | C17: 5 | D17: 60 | F17: 74.5 | G17: 20 | H17: 5.5 | I17: 1.219200606 | J17: 90.83044514 | K17: 16.7030483 | L17: 11.1 | M17: 43.9 | N17: 27.57 | O17: 1.91 | P17: 17.43 | Q17: 42.75 | R17: 4.502 | S17: 0.95 | T17: 0.311 | U17: 34.057 | V17: 0.1053099415 | W17: 0.7966549708
A18: 17 | B18: 275 | C18: 5 | D18: 60 | F18: 69.5 | G18: 23 | H18: 7.5 | I18: 1.250809927 | J18: 86.93128993 | K18: 17.136096 | L18: 7.9 | M18: 29 | N18: 45.53 | O18: 1.63 | P18: 17.57 | Q18: 43.82 | R18: 4.447 | S18: 1.01 | T18: 0.309 | U18: 32.844 | V18: 0.1014833409 | W18: 0.7495207668
A19: 18 | B19: 290 | C19: 5 | D19: 60 | F19: 64 | G19: 26 | H19: 10 | I19: 1.289781022 | J19: 82.5459854 | K19: 17.67 | L19: 5.1 | M19: 26.1 | N19: 50.54 | O19: 1.6 | P19: 18.26 | Q19: 46.11 | R19: 4.326 | S19: 1.15 | T19: 0.246 | U19: 29.908 | V19: 0.09381912817 | W19: 0.6486228584
A20: 19 | B20: 215 | C20: 10 | D20: 60 | F20: 89 | G20: 5 | H20: 6 | I20: 1.111509708 | J20: 98.92436401 | K20: 15.227683 | L20: 21.4 | M20: 38.9 | N20: 23.32 | O20: 3.4 | P20: 16.38 | Q20: 38.02 | R20: 5.129 | S20: 0.72 | T20: 0.263 | U20: 39.488 | V20: 0.1349026828 | W20: 1.038611257
A21: 20 | B21: 230 | C21: 10 | D21: 60 | F21: 84.5 | G21: 8.5 | H21: 7 | I21: 1.153225328 | J21: 97.44754026 | K21: 15.799187 | L21: 19.5 | M21: 40.5 | N21: 23.36 | O21: 2.84 | P21: 16.64 | Q21: 39.95 | R21: 4.863 | S21: 0.84 | T21: 0.271 | U21: 37.436 | V21: 0.1217271589 | W21: 0.9370713392
A22: 21 | B22: 245 | C22: 10 | D22: 60 | F22: 78.5 | G22: 14 | H22: 7.5 | I22: 1.198590482 | J22: 94.08935282 | K22: 16.4206896 | L22: 16.4 | M22: 42.5 | N22: 23.99 | O22: 2.2 | P22: 17.11 | Q22: 41.79 | R22: 4.651 | S22: 0.93 | T22: 0.291 | U22: 35.228 | V22: 0.1112945681 | W22: 0.8429767887
A23: 22 | B23: 260 | C23: 10 | D23: 60 | F23: 74 | G23: 18 | H23: 8 | I23: 1.226120299 | J23: 90.73290215 | K23: 16.7978481 | L23: 11.3 | M23: 44 | N23: 27.14 | O23: 1.8 | P23: 17.56 | Q23: 43.16 | R23: 4.422 | S23: 0.95 | T23: 0.303 | U23: 33.605 | V23: 0.1024559778 | W23: 0.7786144578
A24: 23 | B24: 275 | C24: 10 | D24: 60 | F24: 68 | G24: 24.5 | H24: 7.5 | I24: 1.269709606 | J24: 86.3402532 | K24: 17.3950216 | L24: 7.7 | M24: 28 | N24: 46.41 | O24: 1.71 | P24: 17.89 | Q24: 44.33 | R24: 4.437 | S24: 1.09 | T24: 0.313 | U24: 31.94 | V24: 0.1000902323 | W24: 0.7205053012
A25: 24 | B25: 290 | C25: 10 | D25: 60 | F25: 63 | G25: 26 | H25: 11 | I25: 1.328650511 | J25: 83.70498219 | K25: 18.202512 | L25: 5.1 | M25: 25.5 | N25: 51.31 | O25: 1.6 | P25: 18.21 | Q25: 46.78 | R25: 4.328 | S25: 1.19 | T25: 0.256 | U25: 29.236 | V25: 0.09251817016 | W25: 0.624967935
A26: 25 | B26: 215 | C26: 5 | D26: 90 | F26: 86.5 | G26: 8 | H26: 5.5 | I26: 1.123423358 | J26: 97.17612044 | K26: 15.3909 | L26: 20.8 | M26: 38.7 | N26: 24.13 | O26: 3.36 | P26: 16.37 | Q26: 38.56 | R26: 5.062 | S26: 0.76 | T26: 0.274 | U26: 38.974 | V26: 0.1312759336 | W26: 1.010736515
A27: 26 | B27: 230 | C27: 5 | D27: 90 | F27: 80 | G27: 11.5 | H27: 8.5 | I27: 1.157586365 | J27: 92.6069092 | K27: 15.8589332 | L27: 19.1 | M27: 40.4 | N27: 23.66 | O27: 2.78 | P27: 16.84 | Q27: 40.15 | R27: 4.819 | S27: 0.85 | T27: 0.291 | U27: 37.05 | V27: 0.1200249066 | W27: 0.9227895392
A28: 27 | B28: 245 | C28: 5 | D28: 90 | F28: 74 | G28: 16 | H28: 10 | I28: 1.234477336 | J28: 91.35132285 | K28: 16.9123395 | L28: 16.2 | M28: 42.7 | N28: 23.81 | O28: 2.1 | P28: 17.29 | Q28: 43.01 | R28: 4.584 | S28: 0.98 | T28: 0.303 | U28: 33.833 | V28: 0.1065798651 | W28: 0.786631016
A29: 28 | B29: 260 | C29: 5 | D29: 90 | F29: 68.5 | G29: 21 | H29: 10.5 | I29: 1.286036263 | J29: 88.093484 | K29: 17.6186968 | L29: 10.5 | M29: 44.3 | N29: 27.32 | O29: 1.88 | P29: 17.88 | Q29: 44.89 | R29: 4.417 | S29: 1.06 | T29: 0.311 | U29: 31.442 | V29: 0.0983960793 | W29: 0.7004232569
A30: 29 | B30: 275 | C30: 5 | D30: 90 | F30: 62 | G30: 26.5 | H30: 11.5 | I30: 1.295486095 | J30: 80.32013788 | K30: 17.7481595 | L30: 7 | M30: 27.6 | N30: 46.87 | O30: 1.71 | P30: 18.53 | Q30: 45.17 | R30: 4.362 | S30: 1.11 | T30: 0.319 | U30: 30.509 | V30: 0.09656851893 | W30: 0.6754261678
A31: 30 | B31: 290 | C31: 5 | D31: 90 | F31: 58.5 | G31: 27 | H31: 14.5 | I31: 1.321858117 | J31: 77.32869983 | K31: 18.1094562 | L31: 4.9 | M31: 25.4 | N31: 50.94 | O31: 1.56 | P31: 18.76 | Q31: 46.28 | R31: 4.229 | S31: 1.17 | T31: 0.321 | U31: 29.24 | V31: 0.09137856525 | W31: 0.6318063959
A32: 31 | B32: 215 | C32: 10 | D32: 90 | F32: 85 | G32: 9.5 | H32: 5.5 | I32: 1.128701839 | J32: 95.93965635 | K32: 15.4632152 | L32: 20.6 | M32: 39.2 | N32: 23.76 | O32: 3.38 | P32: 16.44 | Q32: 38.67 | R32: 5.075 | S32: 0.77 | T32: 0.263 | U32: 38.782 | V32: 0.1312386863 | W32: 1.002896302
A33: 32 | B33: 230 | C33: 10 | D33: 90 | F33: 78 | G33: 14 | H33: 8 | I33: 1.146762285 | J33: 89.4474582 | K33: 15.7106433 | L33: 18.9 | M33: 40.8 | N33: 23.57 | O33: 2.73 | P33: 16.73 | Q33: 39.84 | R33: 4.823 | S33: 0.86 | T33: 0.278 | U33: 37.469 | V33: 0.1210592369 | W33: 0.9404869478
A34: 33 | B34: 245 | C34: 10 | D34: 90 | F34: 71.5 | G34: 19 | H34: 9.5 | I34: 1.262207518 | J34: 90.24783755 | K34: 17.292243 | L34: 16 | M34: 43.1 | N34: 23.53 | O34: 2.11 | P34: 17.37 | Q34: 43.57 | R34: 4.671 | S34: 1.07 | T34: 0.297 | U34: 33.022 | V34: 0.1072067937 | W34: 0.7579068166
A35: 34 | B35: 260 | C35: 10 | D35: 90 | F35: 65.5 | G35: 24 | H35: 10.5 | I35: 1.287034387 | J35: 84.30075234 | K35: 17.6323711 | L35: 10.4 | M35: 45.3 | N35: 26.45 | O35: 1.82 | P35: 17.85 | Q35: 44.75 | R35: 4.481 | S35: 1.05 | T35: 0.306 | U35: 31.563 | V35: 0.1001340782 | W35: 0.7053184358
A36: 35 | B36: 275 | C36: 10 | D36: 90 | F36: 60 | G36: 26 | H36: 14 | I36: 1.299284504 | J36: 77.95707022 | K36: 17.8001977 | L36: 6.7 | M36: 27.1 | N36: 47.66 | O36: 1.6 | P36: 18.54 | Q36: 45.26 | R36: 4.367 | S36: 1.17 | T36: 0.312 | U36: 30.351 | V36: 0.09648696421 | W36: 0.6705921343
A37: 36 | B37: 290 | C37: 10 | D37: 90 | F37: 57 | G37: 28 | H37: 15 | I37: 1.338280934 | J37: 76.28201326 | K37: 18.3344488 | L37: 4.8 | M37: 25.3 | N37: 51.09 | O37: 1.6 | P37: 18.81 | Q37: 46.86 | R37: 4.195 | S37: 1.19 | T37: 0.317 | U37: 28.628 | V37: 0.08952198037 | W37: 0.610926163
F40: Uncondensed gases composition
A41: Rice straw | B41: 15mm | D41: Temperature (℃) | E41: Heating Rate (℃/min) | F41: Residence time (min) | G41: Carbon dioxide (%) | H41: Carbon monoxide (%) | I41: Hydrogen (%)
A42: Feedstock | B42: 500g | D42: 215 | E42: 10 | F42: 60 | G42: 100 | H42: 0 | I42: - | L42: ANN predicted data for rice straw
A43: HHV (MJ/Kg) | B43: 13.7 | D43: 230 | E43: 10 | F43: 60 | G43: 100 | H43: 0 | I43: - | K43: Input variables | Q43: Output variables
A44: Ash | B44: 16 | D44: 245 | E44: 10 | F44: 60 | G44: 95 | H44: 5 | I44: - | J44: Temperature (℃) | K44: Heating Rate (℃/min) | L44: Residence time (min) | P44: Solid Yield (%) | Q44: Condenstae Yield (%) | R44: HHV(MJ/Kg) | S44: Carbon (wt%)
A45: Moisture | B45: 8 | D45: 260 | E45: 10 | F45: 60 | G45: 90 | H45: 10 | I45: - | J45: 215 | K45: 5 | L45: 30 | P45: 95.17 | Q45: 4.83 | R45: 14.65 | S45: 36.21
A46: C | B46: 35 | D46: 275 | E46: 10 | F46: 60 | G46: 88 | H46: 12 | I46: - | J46: 230 | K46: 5 | L46: 30 | P46: 90.18 | Q46: 6.82 | R46: 15.05 | S46: 37.93
A47: H | B47: 5.3 | D47: 290 | E47: 10 | F47: 60 | G47: 85 | H47: 15 | I47: 0.0112 | J47: 245 | K47: 5 | L47: 30 | P47: 85.03 | Q47: 11.97 | R47: 15.65 | S47: 39.84
A48: N | B48: 0.7 | J48: 260 | K48: 5 | L48: 30 | P48: 79.62 | Q48: 15.38 | R48: 16.34 | S48: 41.29
A49: S | B49: 0.2 | J49: 275 | K49: 5 | L49: 30 | P49: 73.88 | Q49: 20.12 | R49: 16.66 | S49: 42.58
A50: O | B50: 46 | F50: Condensate composition | J50: 290 | K50: 5 | L50: 30 | P50: 66.86 | Q50: 22.14 | R50: 17.17 | S50: 44.78
A51: O/C | B51: =B50/B46 -> 1.314285714 | F51: Acetic acid (wt%) | G51: 3.5 | J51: 215 | K51: 10 | L51: 30 | P51: 94.09 | Q51: 5.91 | R51: 14.67 | S51: 36.84
A52: H/C | B52: =B47/B46 -> 0.1514285714 | F52: Lactic acid (wt%) | G52: 1.1 | J52: 230 | K52: 10 | L52: 30 | P52: 90.89 | Q52: 9.11 | R52: 15.19 | S52: 38.63
A53: Hemicellulose | B53: 27 | F53: Formic acid (wt%) | G53: 1.9 | J53: 245 | K53: 10 | L53: 30 | P53: 83.73 | Q53: 13.27 | R53: 15.89 | S53: 40.78
A54: Cellulose | B54: 38 | F54: Propanoic acid (wt%) | G54: 0.7 | J54: 260 | K54: 10 | L54: 30 | P54: 78.2 | Q54: 17.3 | R54: 16.59 | S54: 41.75
A55: Lignin | B55: 15 | F55: Butyric acid (wt%) | G55: 0.6 | J55: 275 | K55: 10 | L55: 30 | P55: 73.44 | Q55: 21.56 | R55: 16.82 | S55: 43.08
F56: Benzoic acid (wt%) | G56: 0.5 | J56: 290 | K56: 10 | L56: 30 | P56: 66.62 | Q56: 24.88 | R56: 17.47 | S56: 45.35
F57: 3-Furaldehyde (wt%) | G57: 0.4 | J57: 215 | K57: 5 | L57: 60 | P57: 91.26 | Q57: 6.74 | R57: 15.17 | S57: 37.49
F58: Furfural (wt%) | G58: 0.4 | J58: 230 | K58: 5 | L58: 60 | P58: 85.86 | Q58: 13.14 | R58: 15.54 | S58: 39.27
F59: 5-HMF (wt%) | G59: 0.4 | J59: 245 | K59: 5 | L59: 60 | P59: 80.54 | Q59: 15.46 | R59: 16.37 | S59: 41.88
F60: Methanol (wt%) | G60: 1.2 | J60: 260 | K60: 5 | L60: 60 | P60: 74.75 | Q60: 19.75 | R60: 17.06 | S60: 43.08
F61: Phenol (wt%) | G61: 0.1 | J61: 275 | K61: 5 | L61: 60 | P61: 68.88 | Q61: 23.62 | R61: 17.26 | S61: 43.84
F62: Water (%) | G62: 75 | J62: 290 | K62: 5 | L62: 60 | P62: 64.62 | Q62: 25.38 | R62: 18.02 | S62: 45.88
F63: Others (wt%) | G63: 14 | J63: 215 | K63: 10 | L63: 60 | P63: 88.22 | Q63: 5.78 | R63: 15.17 | S63: 37.93
F64: pH | G64: 2.3 | J64: 230 | K64: 10 | L64: 60 | P64: 84.44 | Q64: 8.56 | R64: 15.78 | S64: 39.97
F65: VS (%) | G65: 13.6 | J65: 245 | K65: 10 | L65: 60 | P65: 78.29 | Q65: 14.21 | R65: 16.46 | S65: 41.76
F66: HHV (MJ/Kg) | G66: 9.2 | J66: 260 | K66: 10 | L66: 60 | P66: 71.09 | Q66: 20.91 | R66: 17.78 | S66: 43.13
J67: 275 | K67: 10 | L67: 60 | P67: 68.08 | Q67: 24.42 | R67: 17.35 | S67: 44.31
J68: 290 | K68: 10 | L68: 60 | P68: 62.86 | Q68: 25.71 | R68: 18.15 | S68: 46.78
J69: 215 | K69: 5 | L69: 90 | P69: 86.48 | Q69: 8.02 | R69: 15.39 | S69: 38.63
J70: 230 | K70: 5 | L70: 90 | P70: 80.11 | Q70: 11.39 | R70: 15.65 | S70: 40.29
J71: 245 | K71: 5 | L71: 90 | P71: 74.04 | Q71: 15.96 | R71: 16.84 | S71: 42.82
J72: 260 | K72: 5 | L72: 90 | P72: 68.67 | Q72: 20.83 | R72: 17.55 | S72: 44.89
J73: 275 | K73: 5 | L73: 90 | P73: 61.94 | Q73: 26.56 | R73: 17.86 | S73: 44.97
J74: 290 | K74: 5 | L74: 90 | P74: 58.49 | Q74: 27.01 | R74: 18.32 | S74: 46.29
J75: 215 | K75: 10 | L75: 90 | P75: 84.93 | Q75: 9.57 | R75: 15.58 | S75: 39.73
J76: 230 | K76: 10 | L76: 90 | P76: 78.04 | Q76: 13.96 | R76: 15.88 | S76: 40.18
J77: 245 | K77: 10 | L77: 90 | P77: 71.63 | Q77: 18.87 | R77: 17.27 | S77: 42.69
J78: 260 | K78: 10 | L78: 90 | P78: 64.95 | Q78: 24.55 | R78: 17.58 | S78: 44.72
J79: 275 | K79: 10 | L79: 90 | P79: 59.89 | Q79: 26.11 | R79: 17.67 | S79: 44.98
J80: 290 | K80: 10 | L80: 90 | P80: 56.06 | Q80: 28.94 | R80: 18.32 | S80: 46.91

Sheet Rice husk
A1: Experimental Runs | B1: Temperature (℃) | C1: Heating Rate (℃/min) | D1: Residence time (min) | E1: Solid Yield (%) | F1: Condensate Yield (%) | G1: Gas Yield (%) | H1: Energy Density | I1: Energy Yield (%) | J1: HHV (MJ/Kg) | K1: Hemicellulose (%) | L1: Cellulose (%) | M1: Lignin (%) | N1: Moisture (wt%) | O1: Ash (wt%) | P1: Carbon (wt%) | Q1: Hydrogen (wt%) | R1: Nitrogen (wt%) | S1: Sulfur (wt%) | T1: Oxygen (wt%) | U1: H/C | V1: O/C
A2: 1 | B2: 215 | C2: 5 | D2: 30 | E2: 88 | F2: 8 | G2: =100-E2-F2 -> 4 | H2: =J2/16 -> 1.127786663 | I2: =H2*E2 -> 99.2452263 | J2: 18.0445866 | K2: 16.9 | L2: 40.7 | M2: 28.3 | N2: 2.56 | O2: 14.1 | P2: 43.86 | Q2: 5.495 | R2: 0.43 | S2: 0.099 | T2: =100-O2-P2-Q2-R2-S2 -> 36.016 | U2: =Q2/P2 -> 0.1252849977 | V2: =T2/P2 -> 0.8211582307
A3: 2 | B3: 230 | C3: 5 | D3: 30 | E3: 85 | F3: 9 | G3: =100-E3-F3 -> 6 | H3: =J3/16 -> 1.1549789 | I3: =H3*E3 -> 98.1732065 | J3: 18.4796624 | K3: 15.8 | L3: 41.7 | M3: 28.12 | N3: 2.12 | O3: 14.38 | P3: 45.37 | Q3: 5.275 | R3: 0.48 | S3: 0.101 | T3: =100-O3-P3-Q3-R3-S3 -> 34.394 | U3: =Q3/P3 -> 0.1162662552 | V3: =T3/P3 -> 0.7580780251
A4: 3 | B4: 245 | C4: 5 | D4: 30 | E4: 81.5 | F4: 11 | G4: 7.5 | H4: 1.204797306 | I4: 98.19098046 | J4: 19.2767569 | K4: 12.5 | L4: 42.9 | M4: 29.83 | N4: 1.96 | O4: 14.77 | P4: 47.41 | Q4: 5.143 | R4: 0.51 | S4: 0.102 | T4: 32.065 | U4: 0.1084792238 | V4: 0.6763341067
A5: 4 | B5: 260 | C5: 5 | D5: 30 | E5: 78 | F5: 12 | G5: 10 | H5: 1.263337713 | I5: 98.54034157 | J5: 20.2134034 | K5: 6.8 | L5: 44.5 | M5: 32.89 | N5: 1.61 | O5: 15.81 | P5: 49.39 | Q5: 5.082 | R5: 0.62 | S5: 0.11 | T5: 28.988 | U5: 0.1028953229 | V5: 0.5869204292
A6: 5 | B6: 275 | C6: 5 | D6: 30 | E6: 74.5 | F6: 14 | G6: 11.5 | H6: 1.278241981 | I6: 95.2290276 | J6: 20.4518717 | K6: 3.2 | L6: 28 | M6: 50.44 | N6: 1.67 | O6: 16.21 | P6: 50.21 | Q6: 4.869 | R6: 0.68 | S6: 0.126 | T6: 27.905 | U6: 0.0969727146 | V6: 0.5557657837
A7: 6 | B7: 290 | C7: 5 | D7: 30 | E7: 69 | F7: 17 | G7: 14 | H7: 1.3225 | I7: 91.2525 | J7: 21.16 | K7: 0.6 | L7: 25.5 | M7: 54.38 | N7: 1.5 | O7: 16.45 | P7: 51.43 | Q7: 4.777 | R7: 0.74 | S7: 0.187 | T7: 26.416 | U7: 0.09288353101 | V7: 0.5136301769
A8: 7 | B8: 215 | C8: 10 | D8: 30 | E8: 86 | F8: 8 | G8: 6 | H8: 1.140206956 | I8: 98.05779824 | J8: 18.2433113 | K8: 16.7 | L8: 40.9 | M8: 27.69 | N8: 2.46 | O8: 14.71 | P8: 44.17 | Q8: 5.488 | R8: 0.47 | S8: 0.103 | T8: 35.059 | U8: 0.1242472266 | V8: 0.7937287752
A9: 8 | B9: 230 | C9: 10 | D9: 30 | E9: 83.5 | F9: 10 | G9: 6.5 | H9: 1.168913512 | I9: 97.60427829 | J9: 18.7026162 | K9: 15.7 | L9: 41.3 | M9: 28.15 | N9: 2.21 | O9: 14.85 | P9: 45.76 | Q9: 5.269 | R9: 0.52 | S9: 0.111 | T9: 33.49 | U9: 0.1151442308 | V9: 0.7318618881
A10: 9 | B10: 245 | C10: 10 | D10: 30 | E10: 80 | F10: 12 | G10: 8 | H10: 1.222670869 | I10: 97.8136695 | J10: 19.5627339 | K10: 12.2 | L10: 43.5 | M10: 29.07 | N10: 2.09 | O10: 15.23 | P10: 47.84 | Q10: 5.171 | R10: 0.54 | S10: 0.128 | T10: 31.091 | U10: 0.1080894649 | V10: 0.6498954849
A11: 10 | B11: 260 | C11: 10 | D11: 30 | E11: 75 | F11: 13.5 | G11: 11.5 | H11: 1.268035488 | I11: 95.10266156 | J11: 20.2885678 | K11: 6.5 | L11: 44.9 | M11: 31.82 | N11: 1.89 | O11: 16.78 | P11: 49.68 | Q11: 4.952 | R11: 0.63 | S11: 0.156 | T11: 27.802 | U11: 0.09967793881 | V11: 0.5596215781
A12: 11 | B12: 275 | C12: 10 | D12: 30 | E12: 72 | F12: 15 | G12: 13 | H12: 1.2839867 | I12: 92.4470424 | J12: 20.5437872 | K12: 2.9 | L12: 28 | M12: 51.96 | N12: 1.78 | O12: 17.14 | P12: 50.76 | Q12: 4.733 | R12: 0.69 | S12: 0.179 | T12: 26.498 | U12: 0.0932427108 | V12: 0.5220252167
A13: 12 | B13: 290 | C13: 10 | D13: 30 | E13: 67 | F13: 18 | G13: 15 | H13: 1.325625 | I13: 88.816875 | J13: 21.21 | K13: 0.5 | L13: 25 | M13: 55.56 | N13: 1.77 | O13: 17.33 | P13: 51.87 | Q13: 4.612 | R13: 0.74 | S13: 0.185 | T13: 25.263 | U13: 0.08891459418 | V13: 0.4870445344
A14: 13 | B14: 215 | C14: 5 | D14: 60 | E14: 85 | F14: 9 | G14: 6 | H14: 1.135855 | I14: 96.547675 | J14: 18.17368 | K14: 16.4 | L14: 40.3 | M14: 28.89 | N14: 2.54 | O14: 14.41 | P14: 44.37 | Q14: 5.387 | R14: 0.46 | S14: 0.109 | T14: 35.264 | U14: 0.1214108632 | V14: 0.7947712418
A15: 14 | B15: 230 | C15: 5 | D15: 60 | E15: 82 | F15: 9.5 | G15: 8.5 | H15: 1.164772775 | I15: 95.51136755 | J15: 18.6363644 | K15: 15.3 | L15: 41.7 | M15: 28.06 | N15: 2.28 | O15: 14.94 | P15: 45.88 | Q15: 5.168 | R15: 0.49 | S15: 0.122 | T15: 33.4 | U15: 0.1126416739 | V15: 0.7279860506
A16: 15 | B16: 245 | C16: 5 | D16: 60 | E16: 79 | F16: 10.5 | G16: 10.5 | H16: 1.192891331 | I16: 94.23841517 | J16: 19.0862613 | K16: 11.7 | L16: 43.4 | M16: 29.15 | N16: 2.05 | O16: 15.75 | P16: 47.54 | Q16: 4.863 | R16: 0.52 | S16: 0.138 | T16: 31.189 | U16: 0.1022928061 | V16: 0.6560580564
A17: 16 | B17: 260 | C17: 5 | D17: 60 | E17: 74 | F17: 12 | G17: 14 | H17: 1.226953325 | I17: 90.79454605 | J17: 19.6312532 | K17: 6.4 | L17: 44.7 | M17: 32.41 | N17: 1.92 | O17: 16.49 | P17: 49.41 | Q17: 4.561 | R17: 0.61 | S17: 0.145 | T17: 28.784 | U17: 0.09230924914 | V17: 0.5825541388
A18: 17 | B18: 275 | C18: 5 | D18: 60 | E18: 69 | F18: 19.5 | G18: 11.5 | H18: 1.258529356 | I18: 86.83852558 | J18: 20.1364697 | K18: 2.8 | L18: 27.5 | M18: 52.38 | N18: 1.81 | O18: 17.32 | P18: 50.57 | Q18: 4.464 | R18: 0.74 | S18: 0.181 | T18: 26.725 | U18: 0.08827368005 | V18: 0.5284753807
A19: 18 | B19: 290 | C19: 5 | D19: 60 | E19: 64 | F19: 24 | G19: 12 | H19: 1.340625 | I19: 85.8 | J19: 21.45 | K19: 0.4 | L19: 25 | M19: 56.89 | N19: 1.77 | O19: 17.45 | P19: 53.22 | Q19: 4.411 | R19: 0.77 | S19: 0.188 | T19: 23.961 | U19: 0.08288237505 | V19: 0.4502254791
A20: 19 | B20: 215 | C20: 10 | D20: 60 | E20: 85 | F20: 8 | G20: 7 | H20: 1.098420806 | I20: 93.36576853 | J20: 17.5747329 | K20: 16.2 | L20: 40.6 | M20: 28.77 | N20: 2.54 | O20: 14.43 | P20: 43.26 | Q20: 5.308 | R20: 0.47 | S20: 0.117 | T20: 36.415 | U20: 0.1226999538 | V20: 0.8417706889
A21: 20 | B21: 230 | C21: 10 | D21: 60 | E21: 80.5 | F21: 13 | G21: 6.5 | H21: 1.158028106 | I21: 93.22126255 | J21: 18.5284497 | K21: 15.1 | L21: 41.9 | M21: 28.28 | N21: 2.17 | O21: 14.72 | P21: 45.78 | Q21: 5.135 | R21: 0.48 | S21: 0.138 | T21: 33.747 | U21: 0.1121668851 | V21: 0.7371559633
A22: 21 | B22: 245 | C22: 10 | D22: 60 | E22: 75 | F22: 18 | G22: 7 | H22: 1.183668625 | I22: 88.77514688 | J22: 18.938698 | K22: 11.2 | L22: 44.7 | M22: 28.3 | N22: 2.01 | O22: 15.8 | P22: 47.21 | Q22: 4.857 | R22: 0.52 | S22: 0.159 | T22: 31.454 | U22: 0.1028807456 | V22: 0.6662571489
A23: 22 | B23: 260 | C23: 10 | D23: 60 | E23: 71 | F23: 21 | G23: 8 | H23: 1.219914656 | I23: 86.61394059 | J23: 19.5186345 | K23: 6.2 | L23: 45.2 | M23: 32.04 | N23: 1.89 | O23: 16.56 | P23: 49.24 | Q23: 4.516 | R23: 0.68 | S23: 0.187 | T23: 28.817 | U23: 0.09171405361 | V23: 0.5852355808
A24: 23 | B24: 275 | C24: 10 | D24: 60 | E24: 66.5 | F24: 25 | G24: 8.5 | H24: 1.267991362 | I24: 84.32142561 | J24: 20.2878618 | K24: 2.8 | L24: 27.5 | M24: 52.49 | N24: 1.78 | O24: 17.21 | P24: 51.03 | Q24: 4.427 | R24: 0.74 | S24: 0.191 | T24: 26.402 | U24: 0.08675289046 | V24: 0.5173819322
A25: 24 | B25: C | C25: 10 | D25: 60 | E25: 62 | F25: 28.5 | G25: 9.5 | H25: 1.39375 | I25: 86.4125 | J25: 22.3 | K25: 0.4 | L25: 25 | M25: 54.74 | N25: 1.73 | O25: 17.32 | P25: 53.6 | Q25: 4.412 | R25: 0.92 | S25: 0.212 | T25: 23.536 | U25: 0.08231343284 | V25: 0.4391044776
A26: 25 | B26: 215 | C26: 5 | D26: 90 | E26: 84 | F26: 9 | G26: 7 | H26: 1.114833294 | I26: 93.64599668 | J26: 17.8373327 | K26: 15.8 | L26: 41 | M26: 28.88 | N26: 2.45 | O26: 14.32 | P26: 43.92 | Q26: 5.287 | R26: 0.53 | S26: 0.102 | T26: 35.841 | U26: 0.1203779599 | V26: 0.8160519126
A27: 26 | B27: 230 | C27: 5 | D27: 90 | E27: 79 | F27: 12 | G27: 9 | H27: 1.184152956 | I27: 93.54808354 | J27: 18.9464473 | K27: 14.4 | L27: 42.1 | M27: 28.84 | N27: 2.36 | O27: 14.66 | P27: 46.79 | Q27: 5.106 | R27: 0.55 | S27: 0.129 | T27: 32.765 | U27: 0.1091258816 | V27: 0.7002564651
A28: 27 | B28: 245 | C28: 5 | D28: 90 | E28: 74 | F28: 17 | G28: 9 | H28: 1.205677363 | I28: 89.22012483 | J28: 19.2908378 | K28: 10.8 | L28: 43.4 | M28: 30.1 | N28: 2.7 | O28: 15.7 | P28: 48.11 | Q28: 4.827 | R28: 0.49 | S28: 0.141 | T28: 30.732 | U28: 0.1003325712 | V28: 0.6387861152
A29: 28 | B29: 260 | C29: 5 | D29: 90 | E29: 69 | F29: 22.5 | G29: 8.5 | H29: 1.228167619 | I29: 84.74356569 | J29: 19.6506819 | K29: 6.1 | L29: 45.7 | M29: 31.71 | N29: 1.94 | O29: 16.49 | P29: 49.76 | Q29: 4.451 | R29: 0.58 | S29: 0.168 | T29: 28.551 | U29: 0.08944935691 | V29: 0.5737741158
A30: 29 | B30: 275 | C30: 5 | D30: 90 | E30: 64.5 | F30: 27 | G30: 8.5 | H30: 1.266780713 | I30: 81.70735596 | J30: 20.2684914 | K30: 2.6 | L30: 27 | M30: 53.15 | N30: 1.8 | O30: 17.25 | P30: 51.11 | Q30: 4.381 | R30: 0.75 | S30: 0.183 | T30: 26.326 | U30: 0.08571708081 | V30: 0.5150851105
A31: 30 | B31: 290 | C31: 5 | D31: 90 | E31: 59 | F31: 28 | G31: 13 | H31: 1.39875 | I31: 82.52625 | J31: 22.38 | K31: 0.3 | L31: 24.5 | M31: 57.35 | N31: 1.71 | O31: 17.85 | P31: 53.05 | Q31: 4.279 | R31: 0.92 | S31: 0.228 | T31: 23.673 | U31: 0.08065975495 | V31: 0.4462393968
A32: 31 | B32: 215 | C32: 10 | D32: 90 | E32: 83 | F32: 10 | G32: 7 | H32: 1.1129358 | I32: 92.3736714 | J32: 17.8069728 | K32: 15.7 | L32: 41.4 | M32: 28.42 | N32: 2.58 | O32: 14.48 | P32: 43.81 | Q32: 5.285 | R32: 0.58 | S32: 0.107 | T32: 35.738 | U32: 0.1206345583 | V32: 0.8157498288
A33: 32 | B33: 230 | C33: 10 | D33: 90 | E33: 77 | F33: 12 | G33: 11 | H33: 1.185415881 | I33: 91.27702286 | J33: 18.9666541 | K33: 14.1 | L33: 42 | M33: 28.53 | N33: 2.19 | O33: 15.37 | P33: 46.63 | Q33: 5.117 | R33: 0.61 | S33: 0.128 | T33: 32.145 | U33: 0.1097362213 | V33: 0.689363071
A34: 33 | B34: 245 | C34: 10 | D34: 90 | E34: 72.5 | F34: 16 | G34: 11.5 | H34: 1.218669262 | I34: 88.35352153 | J34: 19.4987082 | K34: 10.3 | L34: 45.6 | M34: 27.65 | N34: 1.94 | O34: 16.45 | P34: 48.29 | Q34: 4.854 | R34: 0.64 | S34: 0.146 | T34: 29.62 | U34: 0.1005177055 | V34: 0.6133775109
A35: 34 | B35: 260 | C35: 10 | D35: 90 | E35: 65.5 | F35: 20 | G35: 14.5 | H35: 1.240556844 | I35: 81.25647327 | J35: 19.8489095 | K35: 5.9 | L35: 47 | M35: 29.73 | N35: 1.85 | O35: 17.37 | P35: 49.88 | Q35: 4.487 | R35: 0.62 | S35: 0.184 | T35: 27.459 | U35: 0.08995589415 | V35: 0.5505012029
A36: 35 | B36: 275 | C36: 10 | D36: 90 | E36: 60 | F36: 25 | G36: 15 | H36: 1.276118012 | I36: 76.56708075 | J36: 20.4178882 | K36: 2.5 | L36: 27.5 | M36: 51.9 | N36: 1.73 | O36: 18.1 | P36: 51.22 | Q36: 4.391 | R36: 0.71 | S36: 0.195 | T36: 25.384 | U36: 0.08572823116 | V36: 0.4955876611
A37: 36 | B37: 290 | C37: 10 | D37: 90 | E37: 55 | F37: 29 | G37: 16 | H37: 1.404375 | I37: 77.240625 | J37: 22.47 | K37: 0.3 | L37: 24.5 | M37: 57.46 | N37: 1.67 | O37: 18.24 | P37: 53.16 | Q37: 4.267 | R37: 0.93 | S37: 0.226 | T37: 23.177 | U37: 0.08026711813 | V37: 0.4359857035
N39: ANN predicted data for rice straw
F40: Uncondensed gases composition | M40: Input variables | S40: Output variables
A41: Rice husk | B41: 15mm | D41: Temperature (℃) | E41: Heating Rate (℃/min) | F41: Residence time (min) | G41: Carbon dioxide (%) | H41: Carbon monoxide (%) | I41: Hydrogen (%) | L41: Temperature (℃) | M41: Heating Rate (℃/min) | N41: Residence time (min) | R41: Solid Yield (%) | S41: Condenstae Yield (%) | T41: HHV(MJ/Kg) | U41: Carbon (wt%)
A42: HHV (MJ/Kg) | B42: 16 | D42: 215 | E42: 10 | F42: 60 | G42: 100 | H42: 0 | I42: - | L42: 215 | M42: 5 | N42: 30 | R42: 89.13 | S42: 6.87 | T42: 18.06 | U42: 44.18
A43: Feedstock | B43: 500g | D43: 230 | E43: 10 | F43: 60 | G43: 100 | H43: 0 | I43: - | L43: 230 | M43: 5 | N43: 30 | R43: 85.08 | S43: 8.92 | T43: 18.49 | U43: 45.29
A44: Ash | B44: 14 | D44: 245 | E44: 10 | F44: 60 | G44: 100 | H44: 0 | I44: - | L44: 245 | M44: 5 | N44: 30 | R44: 81.25 | S44: 11.25 | T44: 19.21 | U44: 47.55
A45: Moisture | B45: 8 | D45: 260 | E45: 10 | F45: 60 | G45: 96 | H45: 4 | I45: - | L45: 260 | M45: 5 | N45: 30 | R45: 77.96 | S45: 12.04 | T45: 19.98 | U45: 49.26
A46: C | B46: 39 | D46: 275 | E46: 10 | F46: 60 | G46: 93 | H46: 7 | I46: - | L46: 275 | M46: 5 | N46: 30 | R46: 74.63 | S46: 13.87 | T46: 20.41 | U46: 49.87
A47: H | B47: 5.6 | D47: 290 | E47: 10 | F47: 60 | G47: 90 | H47: 10 | I47: 0.0057 | L47: 290 | M47: 5 | N47: 30 | R47: 69.23 | S47: 16.77 | T47: 21.17 | U47: 51.26
A48: N | B48: 0.4 | L48: 215 | M48: 10 | N48: 30 | R48: 87.04 | S48: 6.96 | T48: 18.29 | U48: 44.29
A49: S | B49: 0.09 | L49: 230 | M49: 10 | N49: 30 | R49: 83.74 | S49: 9.76 | T49: 18.86 | U49: 46.18
A50: O | B50: 41 | L50: 245 | M50: 10 | N50: 30 | R50: 80.19 | S50: 11.81 | T50: 19.52 | U50: 47.59
A51: O/C | B51: =B50/B46 -> 1.051282051 | E51: Condensate composition | L51: 260 | M51: 10 | N51: 30 | R51: 75.19 | S51: 13.31 | T51: 20.24 | U51: 49.66
A52: H/C | B52: =B47/B46 -> 0.1435897436 | E52: Acetic acid (wt%) | F52: 4 | L52: 275 | M52: 10 | N52: 30 | R52: 72.86 | S52: 14.14 | T52: 20.62 | U52: 50.76
A53: Hemicellulose | B53: 22 | E53: Lactic acid (wt%) | F53: 1.6 | L53: 290 | M53: 10 | N53: 30 | R53: 66.99 | S53: 18.01 | T53: 21.13 | U53: 52.14
A54: Cellulose | B54: 40 | E54: Formic acid (wt%) | F54: 1.6 | L54: 215 | M54: 5 | N54: 60 | R54: 85.08 | S54: 8.92 | T54: 18.18 | U54: 43.97
A55: Lignin | B55: 21 | E55: Propanoic acid (wt%) | F55: 0.8 | L55: 230 | M55: 5 | N55: 60 | R55: 82.13 | S55: 9.37 | T55: 18.62 | U55: 45.96
E56: Butyric acid (wt%) | F56: 0.8 | L56: 245 | M56: 5 | N56: 60 | R56: 79.44 | S56: 10.06 | T56: 18.95 | U56: 47.64
E57: Benzoic acid (wt%) | F57: 0.5 | L57: 260 | M57: 5 | N57: 60 | R57: 74.2 | S57: 11.8 | T57: 19.59 | U57: 48.87
E58: 3-Furaldehyde (wt%) | F58: 0.6 | L58: 275 | M58: 5 | N58: 60 | R58: 70.14 | S58: 18.36 | T58: 20.17 | U58: 50.13
E59: Furfural (wt%) | F59: 0.6 | L59: 290 | M59: 5 | N59: 60 | R59: 64.23 | S59: 23.77 | T59: 21.09 | U59: 53.08
E60: 5-HMF (wt%) | F60: 0.4 | L60: 215 | M60: 10 | N60: 60 | R60: 85.03 | S60: 7.97 | T60: 17.55 | U60: 42.99
E61: Methanol (wt%) | F61: 1.2 | L61: 230 | M61: 10 | N61: 60 | R61: 79.83 | S61: 13.67 | T61: 18.57 | U61: 45.57
E62: Phenol (wt%) | F62: 0.2 | L62: 245 | M62: 10 | N62: 60 | R62: 75.04 | S62: 17.96 | T62: 18.88 | U62: 47.15
E63: Water (%) | F63: 61 | L63: 260 | M63: 10 | N63: 60 | R63: 71.18 | S63: 20.82 | T63: 19.65 | U63: 49.35
E64: Others (wt%) | F64: 26 | L64: 275 | M64: 10 | N64: 60 | R64: 66.71 | S64: 24.79 | T64: 20.31 | U64: 50.86
E65: pH | F65: 2.3 | L65: 290 | M65: 10 | N65: 60 | R65: 63.06 | S65: 27.44 | T65: 22.27 | U65: 53.52
E66: VS (%) | F66: 18.2 | L66: 215 | M66: 5 | N66: 90 | R66: 83.92 | S66: 9.08 | T66: 17.86 | U66: 44.84
E67: HHV (MJ/Kg) | F67: 12.8 | L67: 230 | M67: 5 | N67: 90 | R67: 79.17 | S67: 11.83 | T67: 18.85 | U67: 46.85
L68: 245 | M68: 5 | N68: 90 | R68: 74.03 | S68: 16.97 | T68: 19.26 | U68: 47.15
L69: 260 | M69: 5 | N69: 90 | R69: 68.95 | S69: 22.55 | T69: 19.79 | U69: 49.72
L70: 275 | M70: 5 | N70: 90 | R70: 64.55 | S70: 26.95 | T70: 20.22 | U70: 50.93
L71: 290 | M71: 5 | N71: 90 | R71: 59.34 | S71: 27.66 | T71: 21.32 | U71: 53.06
L72: 215 | M72: 10 | N72: 90 | R72: 83.01 | S72: 9.99 | T72: 17.88 | U72: 44.81
L73: 230 | M73: 10 | N73: 90 | R73: 78.93 | S73: 10.07 | T73: 18.95 | U73: 45.62
L74: 245 | M74: 10 | N74: 90 | R74: 72.62 | S74: 15.88 | T74: 19.31 | U74: 48.37
L75: 260 | M75: 10 | N75: 90 | R75: 65.43 | S75: 20.07 | T75: 19.9 | U75: 50.09
L76: 275 | M76: 10 | N76: 90 | R76: 59.91 | S76: 25.09 | T76: 20.38 | U76: 51.24
L77: 290 | M77: 10 | N77: 90 | R77: 54.98 | S77: 29.02 | T77: 22.33 | U77: 53.26

Sheet AD
B2: Before inoculation | G2: Final
A3: Condensate | B3: pH | C3: TS(%) | D3: VS(%) | E3: sCOD (g/L) | F3: C/N/P | G3: pH | H3: TS(%) | I3: VS(%) | J3: sCOD (g/L) | L3: VSsubstrae/ Vsinoculum : 0.1
A4: Rice husk | B4: 7 | C4: 2.3 | D4: 2 | E4: 4.9 | F4: 30/1/1 | G4: 7 | H4: 1.9 | I4: 1.2 | J4: 1.7
A5: Rice straw | B5: 7 | C5: 2 | D5: 1.9 | E5: 2.2 | F5: 30/1/1 | G5: 7 | H5: 1.9 | I5: 1.2 | J5: 0.9
I8: Rice husk | AA8: Rice straw | AH8: Time (day) | AI8: Rice husk (ml-Ch4/g-VS) | AJ8: Rice straw (ml-CH4/g-VS)
B9: Peak area (mV-s) | F9: Amount (%) | J9: mole fraction | M9: Volume (ml) | Q9: Peak area (mV-s) | U9: Amount (%) | Y9: mole fraction | AB9: Volume (ml) | AH9: 0 | AI9: - | AJ9: -
A10: Time (day) | B10: N2 | C10: CH4 | D10: CO2 | E10: Total Peak area | F10: N2 | G10: CH4 | H10: CO2 | I10: Total (%) | J10: N2 | K10: CH4 | L10: CO2 | M10: N2 | N10: CH4 | O10: CO2 | P10: CH4 yield | Q10: N2 | R10: CH4 | S10: CO2 | T10: Total Peak area | U10: N2 | V10: CH4 | W10: CO2 | X10: Total (%) | Y10: N2 | Z10: CH4 | AA10: CO2 | AB10: N2 | AC10: CH4 | AD10: CO2 | AE10: CH4 yield | AH10: 3 | AI10: - | AJ10: 11.07077874
A11: 0 | B11: 24.375 | C11: - | D11: - | E11: 24.375 | F11: =(B11/E11)*100 -> 100 | G11: - | H11: - | I11: =F11 -> 100 | J11: - | K11: - | L11: - | M11: - | N11: - | O11: - | P11: - | Q11: 20.613 | R11: - | S11: - | T11: 20.613 | U11: 100 | V11: - | W11: - | X11: =U11 -> 100 | Y11: - | Z11: - | AA11: - | AB11: - | AC11: - | AD11: - | AE11: - | AH11: 7 | AI11: - | AJ11: 27.10182686
A12: 3 | B12: 15.827 | C12: - | D12: 5.219 | E12: 21.046 | F12: 75.20193861 | G12: - | H12: =(D12/E12)*100 -> 24.79806139 | I12: =F12+H12 -> 100 | J12: =F12/100 -> 0.7520193861 | K12: - | L12: =H12/100 -> 0.2479806139 | M12: =(J12*0.0821*273)/0.987 -> 17.07724023 | N12: - | O12: =(L12*0.0821*273)/0.987 -> 5.631270409 | P12: - | Q12: 15.579 | R12: 4.11 | S12: 3.729 | T12: 23.418 | U12: =(Q12/T12)*100 -> 66.52574942 | V12: =(R12/T12)*100 -> 17.5506021 | W12: =(S12/T12)*100 -> 15.92364848 | X12: =SUM(U12:W12) -> 100 | Y12: =U12/100 -> 0.6652574942 | Z12: =V12/100 -> 0.175506021 | AA12: =W12/100 -> 0.1592364848 | AB12: =(Y12*0.0821*273)/0.987 -> 15.10700689 | AC12: =(Z12*0.0821*273)/0.987 -> 3.985480345 | AD12: =(AA12*0.0821*273)/0.987 -> 3.616023408 | AE12: =AC12/0.36 -> 11.07077874 | AH12: 10 | AI12: 11.02165058 | AJ12: 68.03046099
A13: 7 | B13: 13.573 | C13: - | D13: 4.456 | E13: 18.029 | F13: 75.28426424 | G13: - | H13: 24.71573576 | I13: 100 | J13: =F13/100 -> 0.7528426424 | K13: - | L13: =H13/100 -> 0.2471573576 | M13: =(J13*0.0821*273)/0.987 -> 17.09593515 | N13: - | O13: =(L13*0.0821*273)/0.987 -> 5.612575484 | P13: - | Q13: 13.466 | R13: 4.382 | S13: 3.712 | T13: 21.598 | U13: 62.34836559 | V13: 20.28891564 | W13: 17.18677655 | X13: =SUM(U13:W13) -> 99.82405778 | Y13: =U13/100 -> 0.6234836559 | Z13: =V13/100 -> 0.2028891564 | AA13: =W13/100 -> 0.1718677655 | AB13: =(Y13*0.0821*273)/0.987 -> 14.15838523 | AC13: =(Z13*0.0821*273)/0.987 -> 4.607310567 | AD13: =(AA13*0.0821*273)/0.987 -> 3.902860982 | AE13: =AC13/0.17 -> 27.10182686 | AH13: 13 | AI13: 43.58860415 | AJ13: 119.6715287
A14: 10 | B14: 12.877 | C14: 3.805 | D14: 5.717 | E14: 22.399 | F14: 57.48917362 | G14: 16.98736551 | H14: 25.52346087 | I14: 100 | J14: =F14/100 -> 0.5748917362 | K14: =G14/100 -> 0.1698736551 | L14: =H14/100 -> 0.2552346087 | M14: =(J14*0.0821*273)/0.987 -> 13.05493511 | N14: =(K14*0.0821*273)/0.987 -> 3.857577703 | O14: =(L14*0.0821*273)/0.987 -> 5.795997827 | P14: =N14/0.35 -> 11.02165058 | Q14: 13.212 | R14: 5.467 | S14: 4.132 | T14: 22.811 | U14: =(Q14/T14)*100 -> 57.91942484 | V14: =(R14/T14)*100 -> 23.96650739 | W14: =(S14/T14)*100 -> 18.11406777 | X14: 100 | Y14: 0.5791942484 | Z14: 0.2396650739 | AA14: 0.1811406777 | AB14: 13.15263875 | AC14: 5.44243688 | AD14: 4.113435008 | AE14: =AC14/0.08 -> 68.03046099 | AH14: 17 | AI14: 222.3835046 | AJ14: 250.1953432
A15: 13 | B15: 12.019 | C15: 4.54 | D15: 4.943 | E15: 21.502 | F15: 55.89712585 | G15: 21.11431495 | H15: 22.9885592 | I15: 100 | J15: =F15/100 -> 0.5589712585 | K15: =G15/100 -> 0.2111431495 | L15: =H15/100 -> 0.229885592 | M15: =(J15*0.0821*273)/0.987 -> 12.69340477 | N15: =(K15*0.0821*273)/0.987 -> 4.794746456 | O15: =(L15*0.0821*273)/0.987 -> 5.220359412 | P15: =N15/0.11 -> 43.58860415 | Q15: 11.858 | R15: 5.926 | S15: 4.706 | T15: 22.49 | U15: 52.72565585 | V15: 26.34948866 | W15: 20.92485549 | X15: 100 | Y15: 0.5272565585 | Z15: 0.2634948866 | AA15: 0.2092485549 | AB15: 11.97321117 | AC15: 5.983576436 | AD15: 4.751723035 | AE15: =AC15/0.05 -> 119.6715287 | AH15: 20 | AI15: 338.128343 | AJ15: 305.0161912
A16: 17 | B16: 10.737 | C16: 7.479 | D16: 5.65 | E16: 23.866 | F16: 44.98868683 | G16: 31.33746753 | H16: 23.67384564 | I16: 100 | J16: =F16/100 -> 0.4498868683 | K16: =G16/100 -> 0.3133746753 | L16: =H16/100 -> 0.2367384564 | M16: =(J16*0.0821*273)/0.987 -> 10.21626074 | N16: =(K16*0.0821*273)/0.987 -> 7.116272147 | O16: =(L16*0.0821*273)/0.987 -> 5.375977755 | P16: =N16/0.032 -> 222.3835046 | Q16: 11.804 | R16: 5.239 | S16: 4.571 | T16: 21.614 | U16: =(Q16/T16)*100 -> 54.61275099 | V16: =(R16/T16)*100 -> 24.23891922 | W16: =(S16/T16)*100 -> 21.14832979 | X16: 100 | Y16: 0.5461275099 | Z16: 0.2423891922 | AA16: 0.2114832979 | AB16: 12.40174237 | AC16: 5.504297549 | AD16: 4.802470719 | AE16: =AC16/0.022 -> 250.1953432 | AH16: 23 | AI16: 412.3821544 | AJ16: 380.6433425
A17: 20 | B17: 9.369 | C17: 8.235 | D17: 6.442 | E17: 24.046 | F17: 38.96282126 | G17: 34.24686018 | H17: 26.79031856 | I17: 100 | J17: =F17/100 -> 0.3896282126 | K17: 0.3424686018 | L17: =H17/100 -> 0.2679031856 | M17: =(J17*0.0821*273)/0.987 -> 8.847876411 | N17: 7.776951888 | O17: =(L17*0.0821*273)/0.987 -> 6.083682339 | P17: =N17/0.023 -> 338.128343 | Q17: 9.296 | R17: 5.249 | S17: 4.064 | T17: 18.609 | U17: =(Q17/T17)*100 -> 49.95432318 | V17: =(R17/T17)*100 -> 28.20678166 | W17: =(S17/T17)*100 -> 21.83889516 | X17: 100 | Y17: 0.4995432318 | Z17: 0.2820678166 | AA17: 0.2183889516 | AB17: 11.34388279 | AC17: 6.405340015 | AD17: 4.95928783 | AE17: =AC17/0.021 -> 305.0161912 | AH17: 26 | AI17: 485.0689471 | AJ17: 452.750595
A18: 23 | B18: 8.651 | C18: 9.54 | D18: 6.825 | E18: 25.016 | F18: 34.5818676 | G18: 38.13559322 | H18: 27.28253917 | I18: 100 | J18: =F18/100 -> 0.345818676 | K18: 0.3813559322 | L18: =H18/100 -> 0.2728253917 | M18: =(J18*0.0821*273)/0.987 -> 7.853027084 | N18: 8.660025243 | O18: =(L18*0.0821*273)/0.987 -> 6.195458311 | P18: =N18/0.021 -> 412.3821544 | Q18: 9.979 | R18: 5.694 | S18: 4.309 | T18: 19.982 | U18: =(Q18/T18)*100 -> 49.93994595 | V18: =(R18/T18)*100 -> 28.49564608 | W18: =(S18/T18)*100 -> 21.56440797 | X18: 100 | Y18: 0.4993994595 | Z18: 0.2849564608 | AA18: 0.2156440797 | AB18: 11.34061794 | AC18: 6.470936822 | AD18: 4.896955877 | AE18: =AC18/0.017 -> 380.6433425 | AH18: 29 | AI18: 493.5586545 | AJ18: 464.6814234
A19: 26 | B19: 5.909 | C19: 8.197 | D19: 5.631 | E19: 19.851 | F19: =(B19/E19)*100 -> 29.76676238 | G19: =(C21/E19)*100 -> 41.86690847 | H19: =(D19/E19)*100 -> 28.36632915 | I19: =(F19+G19+H19) -> 100 | J19: =F19/100 -> 0.2976676238 | K19: =G19/100 -> 0.4186690847 | L19: =H19/100 -> 0.2836632915 | M19: =(J19*0.0821*273)/0.987 -> 6.759588402 | N19: =(K19*0.0821*273)/0.987 -> 9.507351363 | O19: =(L19*0.0821*273)/0.987 -> 6.441570873 | P19: =N19/0.0196 -> 485.0689471 | Q19: 8.888 | R19: 6.404 | S19: 5.298 | T19: 20.59 | U19: =(Q19/T19)*100 -> 43.16658572 | V19: =(R19/T19)*100 -> 31.10247693 | W19: =(S19/T19)*100 -> 25.73093735 | X19: 100 | Y19: 0.4316658572 | Z19: 0.3110247693 | AA19: 0.2573093735 | AB19: 9.802488711 | AC19: 7.062909283 | AD19: 5.843112645 | AE19: =AC19/0.0156 -> 452.750595 | AH19: 32 | AI19: 496.5928223 | AJ19: 466.6605723
A20: 29 | B20: 7.649 | C20: 9.907 | D20: 5.582 | E20: 23.138 | F20: 33.0581727 | G20: 42.81701098 | H20: 24.12481632 | I20: 100 | J20: =F20/100 -> 0.330581727 | K20: =G20/100 -> 0.4281701098 | L20: =H20/100 -> 0.2412481632 | M20: =(J20*0.0821*273)/0.987 -> 7.507018665 | N20: =(K20*0.0821*273)/0.987 -> 9.723105493 | O20: =(L20*0.0821*273)/0.987 -> 5.47838648 | P20: =N20/0.0197 -> 493.5586545 | Q20: 8.689 | R20: 6.923 | S20: 5.533 | T20: 21.145 | U20: =(Q20/T20)*100 -> 41.09245685 | V20: =(R20/T20)*100 -> 32.74060061 | W20: =(S20/T20)*100 -> 26.16694254 | X20: =(U20+V20+W20) -> 100 | Y20: =U20/100 -> 0.4109245685 | Z20: =V20/100 -> 0.3274060061 | AA20: =W20/100 -> 0.2616694254 | AB20: =(Y20*0.0821*273)/0.987 -> 9.331484934 | AC20: =(Z20*0.0821*273)/0.987 -> 7.434902774 | AD20: =(AA20*0.0821*273)/0.987 -> 5.94212293 | AE20: =AC20/0.016 -> 464.6814234 | AH20: 35 | AI20: 499.1813299 | AJ20: 468.0424997
A21: 32 | B21: 5.482 | C21: 8.311 | D21: 4.517 | E21: 18.196 | F21: =(B21/E21)*100 -> 30.12750055 | G21: =(C19/E21)*100 -> 45.04836228 | H21: =(D21/E21)*100 -> 24.82413717 | I21: =F21+G21+H21 -> 100 | J21: =F21/100 -> 0.3012750055 | K21: =G21/100 -> 0.4504836228 | L21: =H21/100 -> 0.2482413717 | M21: =(J21*0.0821*273)/0.987 -> 6.841506667 | N21: =(K21*0.0821*273)/0.987 -> 10.22981214 | O21: =(L21*0.0821*273)/0.987 -> 5.637191831 | P21: =N21/0.0206 -> 496.5928223 | Q21: 8.181 | R21: 7.481 | S21: 5.022 | T21: 20.684 | U21: 39.55231096 | V21: 36.1680526 | W21: 24.27963643 | X21: =SUM(U21:W21) -> 100 | Y21: =U21/100 -> 0.3955231096 | Z21: =V21/100 -> 0.361680526 | AA21: =W21/100 -> 0.2427963643 | AB21: =(Y21*0.0821*273)/0.987 -> 8.981740743 | AC21: =(Z21*0.0821*273)/0.987 -> 8.213226073 | AD21: =(AA21*0.0821*273)/0.987 -> 5.513543823 | AE21: =AC21/0.0176 -> 466.6605723 | AH21: 37 | AI21: 505.0537501 | AJ21: 469.0020928
A22: 35 | B22: 6.363 | C22: 11.02 | D22: 6.264 | E22: 23.647 | F22: =(B22/E22)*100 -> 26.90827589 | G22: =(C22/E22)*100 -> 46.60210598 | H22: =(D22/E22)*100 -> 26.48961813 | I22: =(F22+G22+H22) -> 100 | J22: =F22/100 -> 0.2690827589 | K22: =G22/100 -> 0.4660210598 | L22: =H22/100 -> 0.2648961813 | M22: =(J22*0.0821*273)/0.987 -> 6.110468693 | N22: =(K22*0.0821*273)/0.987 -> 10.58264419 | O22: =(L22*0.0821*273)/0.987 -> 6.015397752 | P22: =N22/0.0212 -> 499.1813299 | Q22: 7.983 | R22: 8.586 | S22: 6.071 | T22: 22.64 | U22: =(Q22/T22)*100 -> 35.26060071 | V22: =(R22/T22)*100 -> 37.92402827 | W22: =(S22/T22)*100 -> 26.81537102 | X22: =(U22+V22+W22) -> 100 | Y22: =U22/100 -> 0.3526060071 | Z22: =V22/100 -> 0.3792402827 | AA22: =W22/100 -> 0.2681537102 | AB22: =(Y22*0.0821*273)/0.987 -> 8.007157263 | AC22: =(Z22*0.0821*273)/0.987 -> 8.611981994 | AD22: =(AA22*0.0821*273)/0.987 -> 6.089371382 | AE22: =AC22/0.0184 -> 468.0424997 | AH22: 40 | AI22: 508.1827828 | AJ22: 471.2939127
A23: 37 | B23: 5.233 | C23: 10.616 | D23: 5.887 | E23: 21.736 | F23: =(B23/E23)*100 -> 24.07526684 | G23: =(C23/E23)*100 -> 48.84063305 | H23: =(D23/E23)*100 -> 27.08410011 | I23: =(F23+G23+H23) -> 100 | J23: =F23/100 -> 0.2407526684 | K23: 0.4884063305 | L23: =H23/100 -> 0.2708410011 | M23: =(J23*0.0821*273)/0.987 -> 5.467134531 | N23: 11.09098035 | O23: =(L23*0.0821*273)/0.987 -> 6.150395755 | P23: =N23/0.02196 -> 505.0537501 | Q23: 8.286 | R23: 8.103 | S23: 5.168 | T23: 21.557 | U23: =(Q23/T23)*100 -> 38.43763047 | V23: =(R23/T23)*100 -> 37.58871828 | W23: =(S23/T23)*100 -> 23.97365125 | X23: =U23+V23+W23 -> 100 | Y23: =U23/100 -> 0.3843763047 | Z23: =V23/100 -> 0.3758871828 | AA23: =W23/100 -> 0.2397365125 | AB23: =(Y23*0.0821*273)/0.987 -> 8.728613404 | AC23: =(Z23*0.0821*273)/0.987 -> 8.53583809 | AD23: =(AA23*0.0821*273)/0.987 -> 5.444059145 | AE23: =AC23/0.0182 -> 469.0020928
A24: 40 | B24: 5.137 | C24: 10.584 | D24: 6.175 | E24: 21.896 | F24: =(B24/E24)*100 -> 23.4609061 | G24: =(C24/E24)*100 -> 48.33759591 | H24: =(D24/E24)*100 -> 28.20149799 | I24: 100 | J24: =F24/100 -> 0.234609061 | K24: 0.4833759591 | L24: =H24/100 -> 0.2820149799 | M24: =(J24*0.0821*273)/0.987 -> 5.327622358 | N24: 10.97674811 | O24: =(L24*0.0821*273)/0.987 -> 6.404140171 | P24: =N24/0.0216 -> 508.1827828 | Q24: 7.263 | R24: 7.457 | S24: 5.131 | T24: 19.851 | U24: 36.58757745 | V24: 37.56485819 | W24: 25.84756435 | X24: =(U24+V24+W24) -> 100 | Y24: =U24/100 -> 0.3658757745 | Z24: =V24/100 -> 0.3756485819 | AA24: =W24/100 -> 0.2584756435 | AB24: =(Y24*0.0821*273)/0.987 -> 8.308493918 | AC24: =(Z24*0.0821*273)/0.987 -> 8.530419819 | AD24: =(AA24*0.0821*273)/0.987 -> 5.869596901 | AE24: =AC24/0.0181 -> 471.2939127

Sheet TGA-Rice husk#
A1: Time | B1: Temperature | C1: Heat Flow (Normalized) | D1: Weight | F1: Temperature | G1: TRH | H1: URH
A2: min | B2: Â°C | C2: W/g | D2: % | F2: 21.91 | G2: 99.999 | H2: 99.999
A3: 0 | D3: 99.999 | F3: 21.91 | G3: 99.999 | H3: 99.999 | R3: Filename | S3: H.K.-RH
A4: 0 | D4: 99.999 | F4: 21.91 | G4: 99.999 | H4: 99.999 | R4: Instrument name | S4: 0650-0302 (192.168.10.3)
A5: 0 | D5: 99.998 | F5: 21.91 | G5: 99.998 | H5: 99.999 | R5: Operator | S5: SONALI
A6: 0.01 | D6: 99.997 | F6: 21.91 | G6: 99.997 | H6: 99.999 | R6: rundate | S6: 26/06/23
A7: 0.01 | D7: 99.996 | F7: 21.91 | G7: 99.996 | H7: 99.999 | R7: proceduresegments | S7: Ramp 10.00 Â°C/min to 850.00 Â°C
A8: 0.01 | D8: 99.996 | F8: 21.91 | G8: 99.996 | H8: 99.999 | R8: [step]
A9: 0.01 | D9: 99.995 | F9: 21.91 | G9: 99.995 | H9: 99.999 | R9: Ramp 10.00 Â°C/min to 850.00 Â°C
A10: 0.01 | D10: 99.994 | F10: 21.91 | G10: 99.994 | H10: 99.999
A11: 0.01 | D11: 99.993 | F11: 21.91 | G11: 99.993 | H11: 99.999
A12: 0.01 | D12: 99.993 | F12: 21.91 | G12: 99.993 | H12: 99.999
A13: 0.02 | D13: 99.992 | F13: 21.91 | G13: 99.992 | H13: 99.999
A14: 0.02 | D14: 99.991 | F14: 21.91 | G14: 99.991 | H14: 99.999
A15: 0.02 | D15: 99.99 | F15: 21.91 | G15: 99.99 | H15: 99.999
A16: 0.02 | D16: 99.99 | F16: 21.91 | G16: 99.99 | H16: 99.999
A17: 0.02 | D17: 99.989 | F17: 21.91 | G17: 99.989 | H17: 99.999
A18: 0.03 | D18: 99.988 | F18: 21.91 | G18: 99.988 | H18: 99.999
A19: 0.03 | D19: 99.987 | F19: 21.91 | G19: 99.987 | H19: 99.999
A20: 0.03 | D20: 99.987 | F20: 21.91 | G20: 99.987 | H20: 99.999
A21: 0.03 | D21: 99.986 | F21: 21.91 | G21: 99.986 | H21: 99.999
A22: 0.03 | D22: 99.985 | F22: 21.91 | G22: 99.985 | H22: 99.999
A23: 0.03 | D23: 99.984 | F23: 21.91 | G23: 99.984 | H23: 99.999
A24: 0.03 | D24: 99.983 | F24: 21.91 | G24: 99.983 | H24: 99.999
A25: 0.04 | D25: 99.983 | F25: 21.91 | G25: 99.983 | H25: 99.999
A26: 0.04 | D26: 99.982 | F26: 21.91 | G26: 99.982 | H26: 99.999
A27: 0.04 | B27: 21.91 | C27: -0.005 | D27: 99.981 | F27: 21.91 | G27: 99.981 | H27: 99.999
A28: 0.04 | B28: 21.91 | C28: -0.006 | D28: 99.98 | F28: 21.91 | G28: 99.98 | H28: 99.999
A29: 0.04 | B29: 21.91 | C29: -0.007 | D29: 99.98 | F29: 21.91 | G29: 99.98 | H29: 99.999
A30: 0.05 | B30: 21.91 | C30: -0.008 | D30: 99.979 | F30: 21.91 | G30: 99.979 | H30: 99.999
A31: 0.05 | B31: 21.91 | C31: -0.008 | D31: 99.978 | F31: 21.91 | G31: 99.978 | H31: 99.999
A32: 0.05 | B32: 21.91 | C32: -0.009 | D32: 99.977 | F32: 21.91 | G32: 99.977 | H32: 99.999
A33: 0.05 | B33: 21.91 | C33: -0.01 | D33: 99.977 | F33: 21.91 | G33: 99.977 | H33: 99.999
A34: 0.05 | B34: 21.91 | C34: -0.01 | D34: 99.976 | F34: 21.91 | G34: 99.976 | H34: 99.999
A35: 0.05 | B35: 21.91 | C35: -0.011 | D35: 99.975 | F35: 21.91 | G35: 99.975 | H35: 99.999
A36: 0.05 | B36: 21.91 | C36: -0.012 | D36: 99.974 | F36: 21.91 | G36: 99.974 | H36: 99.999
A37: 0.06 | B37: 21.91 | C37: -0.013 | D37: 99.973 | F37: 21.91 | G37: 99.973 | H37: 99.999
A38: 0.06 | B38: 21.9 | C38: -0.013 | D38: 99.973 | F38: 21.9 | G38: 99.973 | H38: 99.999
A39: 0.06 | B39: 21.9 | C39: -0.014 | D39: 99.972 | F39: 21.9 | G39: 99.972 | H39: 99.999
A40: 0.06 | B40: 21.9 | C40: -0.015 | D40: 99.971 | F40: 21.9 | G40: 99.971 | H40: 99.999
A41: 0.06 | B41: 21.9 | C41: -0.015 | D41: 99.97 | F41: 21.9 | G41: 99.97 | H41: 99.999
A42: 0.07 | B42: 21.9 | C42: -0.016 | D42: 99.969 | F42: 21.9 | G42: 99.969 | H42: 99.999
A43: 0.07 | B43: 21.9 | C43: -0.017 | D43: 99.969 | F43: 21.9 | G43: 99.969 | H43: 99.999
A44: 0.07 | B44: 21.9 | C44: -0.017 | D44: 99.968 | F44: 21.9 | G44: 99.968 | H44: 99.999
A45: 0.07 | B45: 21.9 | C45: -0.018 | D45: 99.967 | F45: 21.9 | G45: 99.967 | H45: 99.999
A46: 0.07 | B46: 21.9 | C46: -0.019 | D46: 99.966 | F46: 21.9 | G46: 99.966 | H46: 99.999
A47: 0.07 | B47: 21.9 | C47: -0.019 | D47: 99.965 | F47: 21.9 | G47: 99.965 | H47: 99.999
A48: 0.08 | B48: 21.9 | C48: -0.02 | D48: 99.965 | F48: 21.9 | G48: 99.965 | H48: 99.999
A49: 0.08 | B49: 21.9 | C49: -0.02 | D49: 99.964 | F49: 21.9 | G49: 99.964 | H49: 99.999
A50: 0.08 | B50: 21.9 | C50: -0.021 | D50: 99.963 | F50: 21.9 | G50: 99.963 | H50: 99.999
A51: 0.08 | B51: 21.9 | C51: -0.022 | D51: 99.962 | F51: 21.9 | G51: 99.962 | H51: 99.999
A52: 0.08 | B52: 21.9 | C52: -0.022 | D52: 99.961 | F52: 21.9 | G52: 99.961 | H52: 99.999
A53: 0.08 | B53: 21.9 | C53: -0.023 | D53: 99.961 | F53: 21.9 | G53: 99.961 | H53: 99.999
A54: 0.08 | B54: 21.9 | C54: -0.024 | D54: 99.96 | F54: 21.9 | G54: 99.96 | H54: 99.999
A55: 0.09 | B55: 21.9 | C55: -0.024 | D55: 99.959 | F55: 21.9 | G55: 99.959 | H55: 99.999
A56: 0.09 | B56: 21.89 | C56: -0.025 | D56: 99.958 | F56: 21.89 | G56: 99.958 | H56: 99.999
A57: 0.09 | B57: 21.89 | C57: -0.025 | D57: 99.957 | F57: 21.89 | G57: 99.957 | H57: 99.999
A58: 0.09 | B58: 21.89 | C58: -0.026 | D58: 99.957 | F58: 21.89 | G58: 99.957 | H58: 99.999
A59: 0.09 | B59: 21.89 | C59: -0.026 | D59: 99.956 | F59: 21.89 | G59: 99.956 | H59: 99.999
A60: 0.09 | B60: 21.89 | C60: -0.027 | D60: 99.955 | F60: 21.89 | G60: 99.955 | H60: 99.999
A61: 0.1 | B61: 21.89 | C61: -0.028 | D61: 99.954 | F61: 21.89 | G61: 99.954 | H61: 99.999
A62: 0.1 | B62: 21.89 | C62: -0.028 | D62: 99.953 | F62: 21.89 | G62: 99.953 | H62: 99.999
A63: 0.1 | B63: 21.89 | C63: -0.029 | D63: 99.953 | F63: 21.89 | G63: 99.953 | H63: 99.999
A64: 0.1 | B64: 21.89 | C64: -0.029 | D64: 99.952 | F64: 21.89 | G64: 99.952 | H64: 99.999
A65: 0.1 | B65: 21.89 | C65: -0.03 | D65: 99.951 | F65: 21.89 | G65: 99.951 | H65: 99.999
A66: 0.11 | B66: 21.89 | C66: -0.03 | D66: 99.95 | F66: 21.89 | G66: 99.95 | H66: 99.999
A67: 0.11 | B67: 21.89 | C67: -0.031 | D67: 99.949 | F67: 21.89 | G67: 99.949 | H67: 99.999
A68: 0.11 | B68: 21.89 | C68: -0.032 | D68: 99.948 | F68: 21.89 | G68: 99.948 | H68: 99.999
A69: 0.11 | B69: 21.89 | C69: -0.032 | D69: 99.948 | F69: 21.89 | G69: 99.948 | H69: 99.999
A70: 0.11 | B70: 21.89 | C70: -0.033 | D70: 99.947 | F70: 21.89 | G70: 99.947 | H70: 99.999
A71: 0.11 | B71: 21.89 | C71: -0.033 | D71: 99.946 | F71: 21.89 | G71: 99.946 | H71: 99.999
A72: 0.12 | B72: 21.89 | C72: -0.034 | D72: 99.945 | F72: 21.89 | G72: 99.945 | H72: 99.999
A73: 0.12 | B73: 21.89 | C73: -0.034 | D73: 99.944 | F73: 21.89 | G73: 99.944 | H73: 99.999
A74: 0.12 | B74: 21.89 | C74: -0.035 | D74: 99.944 | F74: 21.89 | G74: 99.944 | H74: 99.999
A75: 0.12 | B75: 21.88 | C75: -0.035 | D75: 99.943 | F75: 21.88 | G75: 99.943 | H75: 99.999
A76: 0.12 | B76: 21.88 | C76: -0.036 | D76: 99.942 | F76: 21.88 | G76: 99.942 | H76: 99.999
A77: 0.12 | B77: 21.88 | C77: -0.037 | D77: 99.941 | F77: 21.88 | G77: 99.941 | H77: 99.999
A78: 0.13 | B78: 21.88 | C78: -0.037 | D78: 99.94 | F78: 21.88 | G78: 99.94 | H78: 99.999
A79: 0.13 | B79: 21.88 | C79: -0.038 | D79: 99.939 | F79: 21.88 | G79: 99.939 | H79: 99.999
A80: 0.13 | B80: 21.88 | C80: -0.038 | D80: 99.939 | F80: 21.88 | G80: 99.939 | H80: 99.999
A81: 0.13 | B81: 21.88 | C81: -0.039 | D81: 99.938 | F81: 21.88 | G81: 99.938 | H81: 99.999
A82: 0.13 | B82: 21.88 | C82: -0.039 | D82: 99.937 | F82: 21.88 | G82: 99.937 | H82: 99.999
A83: 0.13 | B83: 21.88 | C83: -0.04 | D83: 99.936 | F83: 21.88 | G83: 99.936 | H83: 99.999
A84: 0.14 | B84: 21.88 | C84: -0.041 | D84: 99.935 | F84: 21.88 | G84: 99.935 | H84: 99.999
A85: 0.14 | B85: 21.88 | C85: -0.041 | D85: 99.934 | F85: 21.88 | G85: 99.934 | H85: 99.999
A86: 0.14 | B86: 21.88 | C86: -0.042 | D86: 99.933 | F86: 21.88 | G86: 99.933 | H86: 99.999
A87: 0.14 | B87: 21.88 | C87: -0.042 | D87: 99.933 | F87: 21.88 | G87: 99.933 | H87: 99.999
A88: 0.14 | B88: 21.88 | C88: -0.043 | D88: 99.932 | F88: 21.88 | G88: 99.932 | H88: 99.999
A89: 0.14 | B89: 21.88 | C89: -0.043 | D89: 99.931 | F89: 21.88 | G89: 99.931 | H89: 99.999
A90: 0.14 | B90: 21.88 | C90: -0.044 | D90: 99.93 | F90: 21.88 | G90: 99.93 | H90: 99.999
A91: 0.15 | B91: 21.88 | C91: -0.045 | D91: 99.929 | F91: 21.88 | G91: 99.929 | H91: 99.999
A92: 0.15 | B92: 21.88 | C92: -0.045 | D92: 99.928 | F92: 21.88 | G92: 99.928 | H92: 99.999
A93: 0.15 | B93: 21.88 | C93: -0.046 | D93: 99.928 | F93: 21.88 | G93: 99.928 | H93: 99.999
A94: 0.15 | B94: 21.88 | C94: -0.046 | D94: 99.927 | F94: 21.88 | G94: 99.927 | H94: 99.999
A95: 0.15 | B95: 21.88 | C95: -0.047 | D95: 99.926 | F95: 21.88 | G95: 99.926 | H95: 99.999
A96: 0.16 | B96: 21.88 | C96: -0.048 | D96: 99.925 | F96: 21.88 | G96: 99.925 | H96: 99.999
A97: 0.16 | B97: 21.88 | C97: -0.048 | D97: 99.924 | F97: 21.88 | G97: 99.924 | H97: 99.999
A98: 0.16 | B98: 21.88 | C98: -0.049 | D98: 99.923 | F98: 21.88 | G98: 99.923 | H98: 99.999
A99: 0.16 | B99: 21.88 | C99: -0.05 | D99: 99.922 | F99: 21.88 | G99: 99.922 | H99: 99.999
A100: 0.16 | B100: 21.88 | C100: -0.05 | D100: 99.921 | F100: 21.88 | G100: 99.921 | H100: 99.999
A101: 0.16 | B101: 21.88 | C101: -0.051 | D101: 99.921 | F101: 21.88 | G101: 99.921 | H101: 99.999
A102: 0.16 | B102: 21.88 | C102: -0.051 | D102: 99.92 | F102: 21.88 | G102: 99.92 | H102: 99.999
A103: 0.17 | B103: 21.88 | C103: -0.052 | D103: 99.919 | F103: 21.88 | G103: 99.919 | H103: 99.999
A104: 0.17 | B104: 21.88 | C104: -0.052 | D104: 99.918 | F104: 21.88 | G104: 99.918 | H104: 99.999
A105: 0.17 | B105: 21.88 | C105: -0.053 | D105: 99.917 | F105: 21.88 | G105: 99.917 | H105: 99.999
A106: 0.17 | B106: 21.88 | C106: -0.054 | D106: 99.916 | F106: 21.88 | G106: 99.916 | H106: 99.999
A107: 0.17 | B107: 21.88 | C107: -0.054 | D107: 99.915 | F107: 21.88 | G107: 99.915 | H107: 99.999
A108: 0.18 | B108: 21.87 | C108: -0.055 | D108: 99.914 | F108: 21.87 | G108: 99.914 | H108: 99.999
A109: 0.18 | B109: 21.87 | C109: -0.055 | D109: 99.914 | F109: 21.87 | G109: 99.914 | H109: 99.999
A110: 0.18 | B110: 21.87 | C110: -0.056 | D110: 99.913 | F110: 21.87 | G110: 99.913 | H110: 99.999
A111: 0.18 | B111: 21.87 | C111: -0.057 | D111: 99.912 | F111: 21.87 | G111: 99.912 | H111: 99.999
A112: 0.18 | B112: 21.87 | C112: -0.057 | D112: 99.911 | F112: 21.87 | G112: 99.911 | H112: 99.999
A113: 0.18 | B113: 21.87 | C113: -0.058 | D113: 99.91 | F113: 21.87 | G113: 99.91 | H113: 99.999
A114: 0.19 | B114: 21.87 | C114: -0.058 | D114: 99.909 | F114: 21.87 | G114: 99.909 | H114: 99.999
A115: 0.19 | B115: 21.87 | C115: -0.059 | D115: 99.908 | F115: 21.87 | G115: 99.908 | H115: 99.999
A116: 0.19 | B116: 21.87 | C116: -0.06 | D116: 99.907 | F116: 21.87 | G116: 99.907 | H116: 99.999
A117: 0.19 | B117: 21.87 | C117: -0.06 | D117: 99.906 | F117: 21.87 | G117: 99.906 | H117: 99.999
A118: 0.19 | B118: 21.87 | C118: -0.061 | D118: 99.905 | F118: 21.87 | G118: 99.905 | H118: 99.999
A119: 0.19 | B119: 21.87 | C119: -0.061 | D119: 99.905 | F119: 21.87 | G119: 99.905 | H119: 99.999
A120: 0.19 | B120: 21.87 | C120: -0.062 | D120: 99.904 | F120: 21.87 | G120: 99.904 | H120: 99.999
A121: 0.2 | B121: 21.87 | C121: -0.063 | D121: 99.903 | F121: 21.87 | G121: 99.903 | H121: 99.999
A122: 0.2 | B122: 21.87 | C122: -0.063 | D122: 99.902 | F122: 21.87 | G122: 99.902 | H122: 99.999
A123: 0.2 | B123: 21.87 | C123: -0.064 | D123: 99.901 | F123: 21.87 | G123: 99.901 | H123: 99.999
A124: 0.2 | B124: 21.87 | C124: -0.064 | D124: 99.9 | F124: 21.87 | G124: 99.9 | H124: 99.999
A125: 0.2 | B125: 21.87 | C125: -0.065 | D125: 99.899 | F125: 21.87 | G125: 99.899 | H125: 99.999
A126: 0.21 | B126: 21.87 | C126: -0.065 | D126: 99.898 | F126: 21.87 | G126: 99.898 | H126: 99.999
A127: 0.21 | B127: 21.87 | C127: -0.066 | D127: 99.897 | F127: 21.87 | G127: 99.897 | H127: 99.999
A128: 0.21 | B128: 21.87 | C128: -0.066 | D128: 99.896 | F128: 21.87 | G128: 99.896 | H128: 99.999
A129: 0.21 | B129: 21.87 | C129: -0.067 | D129: 99.895 | F129: 21.87 | G129: 99.895 | H129: 99.999
A130: 0.21 | B130: 21.87 | C130: -0.067 | D130: 99.894 | F130: 21.87 | G130: 99.894 | H130: 99.999
A131: 0.21 | B131: 21.87 | C131: -0.068 | D131: 99.893 | F131: 21.87 | G131: 99.893 | H131: 99.999
A132: 0.21 | B132: 21.87 | C132: -0.069 | D132: 99.892 | F132: 21.87 | G132: 99.892 | H132: 99.999
A133: 0.22 | B133: 21.87 | C133: -0.069 | D133: 99.892 | F133: 21.87 | G133: 99.892 | H133: 99.999
A134: 0.22 | B134: 21.87 | C134: -0.07 | D134: 99.891 | F134: 21.87 | G134: 99.891 | H134: 99.999
A135: 0.22 | B135: 21.87 | C135: -0.07 | D135: 99.89 | F135: 21.87 | G135: 99.89 | H135: 99.999
A136: 0.22 | B136: 21.87 | C136: -0.071 | D136: 99.889 | F136: 21.87 | G136: 99.889 | H136: 99.999
A137: 0.22 | B137: 21.87 | C137: -0.071 | D137: 99.888 | F137: 21.87 | G137: 99.888 | H137: 99.999
A138: 0.23 | B138: 21.87 | C138: -0.072 | D138: 99.887 | F138: 21.87 | G138: 99.887 | H138: 99.999
A139: 0.23 | B139: 21.87 | C139: -0.073 | D139: 99.886 | F139: 21.87 | G139: 99.886 | H139: 99.999
A140: 0.23 | B140: 21.87 | C140: -0.073 | D140: 99.885 | F140: 21.87 | G140: 99.885 | H140: 99.999
A141: 0.23 | B141: 21.87 | C141: -0.074 | D141: 99.884 | F141: 21.87 | G141: 99.884 | H141: 99.999
A142: 0.23 | B142: 21.87 | C142: -0.074 | D142: 99.883 | F142: 21.87 | G142: 99.883 | H142: 99.999
A143: 0.23 | B143: 21.87 | C143: -0.075 | D143: 99.882 | F143: 21.87 | G143: 99.882 | H143: 99.999
A144: 0.24 | B144: 21.87 | C144: -0.076 | D144: 99.881 | F144: 21.87 | G144: 99.881 | H144: 99.999
A145: 0.24 | B145: 21.87 | C145: -0.076 | D145: 99.88 | F145: 21.87 | G145: 99.88 | H145: 99.999
A146: 0.24 | B146: 21.87 | C146: -0.077 | D146: 99.879 | F146: 21.87 | G146: 99.879 | H146: 99.999
A147: 0.24 | B147: 21.87 | C147: -0.077 | D147: 99.878 | F147: 21.87 | G147: 99.878 | H147: 99.999
A148: 0.24 | B148: 21.88 | C148: -0.078 | D148: 99.877 | F148: 21.88 | G148: 99.877 | H148: 99.999
A149: 0.24 | B149: 21.88 | C149: -0.079 | D149: 99.876 | F149: 21.88 | G149: 99.876 | H149: 99.999
A150: 0.24 | B150: 21.88 | C150: -0.079 | D150: 99.875 | F150: 21.88 | G150: 99.875 | H150: 99.999
A151: 0.25 | B151: 21.88 | C151: -0.08 | D151: 99.874 | F151: 21.88 | G151: 99.874 | H151: 99.999
A152: 0.25 | B152: 21.88 | C152: -0.081 | D152: 99.873 | F152: 21.88 | G152: 99.873 | H152: 99.999
A153: 0.25 | B153: 21.88 | C153: -0.081 | D153: 99.872 | F153: 21.88 | G153: 99.872 | H153: 99.999
A154: 0.25 | B154: 21.88 | C154: -0.082 | D154: 99.871 | F154: 21.88 | G154: 99.871 | H154: 99.999
A155: 0.25 | B155: 21.88 | C155: -0.082 | D155: 99.87 | F155: 21.88 | G155: 99.87 | H155: 99.999
A156: 0.26 | B156: 21.88 | C156: -0.083 | D156: 99.869 | F156: 21.88 | G156: 99.869 | H156: 99.999
A157: 0.26 | B157: 21.88 | C157: -0.083 | D157: 99.868 | F157: 21.88 | G157: 99.868 | H157: 99.999
A158: 0.26 | B158: 21.88 | C158: -0.084 | D158: 99.867 | F158: 21.88 | G158: 99.867 | H158: 99.999
A159: 0.26 | B159: 21.88 | C159: -0.085 | D159: 99.866 | F159: 21.88 | G159: 99.866 | H159: 99.999
A160: 0.26 | B160: 21.88 | C160: -0.085 | D160: 99.865 | F160: 21.88 | G160: 99.865 | H160: 99.999
A161: 0.26 | B161: 21.88 | C161: -0.086 | D161: 99.864 | F161: 21.88 | G161: 99.864 | H161: 99.999
A162: 0.26 | B162: 21.88 | C162: -0.087 | D162: 99.863 | F162: 21.88 | G162: 99.863 | H162: 99.999
A163: 0.27 | B163: 21.88 | C163: -0.087 | D163: 99.862 | F163: 21.88 | G163: 99.862 | H163: 99.999
A164: 0.27 | B164: 21.88 | C164: -0.088 | D164: 99.861 | F164: 21.88 | G164: 99.861 | H164: 99.999
A165: 0.27 | B165: 21.88 | C165: -0.089 | D165: 99.86 | F165: 21.88 | G165: 99.86 | H165: 99.999
A166: 0.27 | B166: 21.88 | C166: -0.089 | D166: 99.859 | F166: 21.88 | G166: 99.859 | H166: 99.999
A167: 0.27 | B167: 21.88 | C167: -0.09 | D167: 99.858 | F167: 21.88 | G167: 99.858 | H167: 99.999
A168: 0.28 | B168: 21.89 | C168: -0.09 | D168: 99.857 | F168: 21.89 | G168: 99.857 | H168: 99.999
A169: 0.28 | B169: 21.89 | C169: -0.091 | D169: 99.856 | F169: 21.89 | G169: 99.856 | H169: 99.999
A170: 0.28 | B170: 21.89 | C170: -0.092 | D170: 99.855 | F170: 21.89 | G170: 99.855 | H170: 99.999
A171: 0.28 | B171: 21.89 | C171: -0.092 | D171: 99.854 | F171: 21.89 | G171: 99.854 | H171: 99.999
A172: 0.28 | B172: 21.89 | C172: -0.093 | D172: 99.853 | F172: 21.89 | G172: 99.853 | H172: 99.999
A173: 0.28 | B173: 21.89 | C173: -0.094 | D173: 99.852 | F173: 21.89 | G173: 99.852 | H173: 99.999
A174: 0.29 | B174: 21.89 | C174: -0.094 | D174: 99.851 | F174: 21.89 | G174: 99.851 | H174: 99.999
A175: 0.29 | B175: 21.89 | C175: -0.095 | D175: 99.85 | F175: 21.89 | G175: 99.85 | H175: 99.999
A176: 0.29 | B176: 21.89 | C176: -0.096 | D176: 99.849 | F176: 21.89 | G176: 99.849 | H176: 99.999
A177: 0.29 | B177: 21.89 | C177: -0.096 | D177: 99.848 | F177: 21.89 | G177: 99.848 | H177: 99.999
A178: 0.29 | B178: 21.89 | C178: -0.097 | D178: 99.847 | F178: 21.89 | G178: 99.847 | H178: 99.999
A179: 0.29 | B179: 21.89 | C179: -0.097 | D179: 99.846 | F179: 21.89 | G179: 99.846 | H179: 99.999
A180: 0.3 | B180: 21.9 | C180: -0.098 | D180: 99.845 | F180: 21.9 | G180: 99.845 | H180: 99.999
A181: 0.3 | B181: 21.9 | C181: -0.099 | D181: 99.844 | F181: 21.9 | G181: 99.844 | H181: 99.999
A182: 0.3 | B182: 21.9 | C182: -0.099 | D182: 99.843 | F182: 21.9 | G182: 99.843 | H182: 99.999
A183: 0.3 | B183: 21.9 | C183: -0.1 | D183: 99.842 | F183: 21.9 | G183: 99.842 | H183: 99.999
A184: 0.3 | B184: 21.9 | C184: -0.101 | D184: 99.84 | F184: 21.9 | G184: 99.84 | H184: 99.999
A185: 0.3 | B185: 21.9 | C185: -0.101 | D185: 99.839 | F185: 21.9 | G185: 99.839 | H185: 99.999
A186: 0.3 | B186: 21.9 | C186: -0.102 | D186: 99.838 | F186: 21.9 | G186: 99.838 | H186: 99.999
A187: 0.31 | B187: 21.9 | C187: -0.102 | D187: 99.837 | F187: 21.9 | G187: 99.837 | H187: 99.999
A188: 0.31 | B188: 21.9 | C188: -0.103 | D188: 99.836 | F188: 21.9 | G188: 99.836 | H188: 99.999
A189: 0.31 | B189: 21.91 | C189: -0.104 | D189: 99.835 | F189: 21.91 | G189: 99.835 | H189: 99.999
A190: 0.31 | B190: 21.91 | C190: -0.104 | D190: 99.834 | F190: 21.91 | G190: 99.834 | H190: 99.999
A191: 0.31 | B191: 21.91 | C191: -0.105 | D191: 99.833 | F191: 21.91 | G191: 99.833 | H191: 99.999
A192: 0.31 | B192: 21.91 | C192: -0.105 | D192: 99.832 | F192: 21.91 | G192: 99.832 | H192: 99.999
A193: 0.32 | B193: 21.91 | C193: -0.106 | D193: 99.831 | F193: 21.91 | G193: 99.831 | H193: 99.999
A194: 0.32 | B194: 21.91 | C194: -0.106 | D194: 99.83 | F194: 21.91 | G194: 99.83 | H194: 99.999
A195: 0.32 | B195: 21.91 | C195: -0.107 | D195: 99.829 | F195: 21.91 | G195: 99.829 | H195: 99.999
A196: 0.32 | B196: 21.91 | C196: -0.107 | D196: 99.827 | F196: 21.91 | G196: 99.827 | H196: 99.999
A197: 0.32 | B197: 21.92 | C197: -0.108 | D197: 99.826 | F197: 21.92 | G197: 99.826 | H197: 99.999
A198: 0.33 | B198: 21.92 | C198: -0.109 | D198: 99.825 | F198: 21.92 | G198: 99.825 | H198: 99.999
A199: 0.33 | B199: 21.92 | C199: -0.109 | D199: 99.824 | F199: 21.92 | G199: 99.824 | H199: 99.999
A200: 0.33 | B200: 21.92 | C200: -0.11 | D200: 99.823 | F200: 21.92 | G200: 99.823 | H200: 99.999
... 4300 more rows

Sheet TGA-Rice straw#
A1: Time | B1: Temperature | C1: Heat Flow (Normalized) | D1: Weight | F1: Temperature | G1: TRS | H1: URS
A2: min | B2: Â°C | C2: W/g | D2: % | F2: 26.55 | G2: 100.001 | H2: 99.999
A3: 0 | D3: 100.001 | F3: 26.55 | G3: 100.001 | H3: 99.999
A4: 0 | D4: 100.002 | F4: 26.55 | G4: 100.002 | H4: 99.999
A5: 0 | D5: 100.003 | F5: 26.55 | G5: 100.003 | H5: 99.999
A6: 0.01 | D6: 100.003 | F6: 26.55 | G6: 100.003 | H6: 99.999
A7: 0.01 | D7: 100.004 | F7: 26.55 | G7: 100.004 | H7: 99.999
A8: 0.01 | D8: 100.004 | F8: 26.55 | G8: 100.004 | H8: 99.999 | Q8: Filename | R8: RS-=HIMANSHU
A9: 0.01 | D9: 100.005 | F9: 26.55 | G9: 100.005 | H9: 99.999 | Q9: Instrument name | R9: 0650-0302 (192.168.10.3)
A10: 0.01 | D10: 100.006 | F10: 26.55 | G10: 100.006 | H10: 99.999 | Q10: Operator | R10: SONALI
A11: 0.01 | D11: 100.006 | F11: 26.55 | G11: 100.006 | H11: 99.999 | Q11: rundate | R11: 26/06/23
A12: 0.01 | D12: 100.007 | F12: 26.55 | G12: 100.007 | H12: 99.999 | Q12: proceduresegments | R12: Ramp 10.00 Â°C/min to 1050.00 Â°C
A13: 0.02 | D13: 100.007 | F13: 26.55 | G13: 100.007 | H13: 99.999 | Q13: [step]
A14: 0.02 | D14: 100.008 | F14: 26.55 | G14: 100.008 | H14: 99.999 | Q14: Ramp 10.00 Â°C/min to 1050.00 Â°C
A15: 0.02 | D15: 100.008 | F15: 26.55 | G15: 100.008 | H15: 99.999
A16: 0.02 | D16: 100.009 | F16: 26.55 | G16: 100.009 | H16: 99.999
A17: 0.02 | D17: 100.009 | F17: 26.55 | G17: 100.009 | H17: 99.999
A18: 0.03 | D18: 100.01 | F18: 26.55 | G18: 100.01 | H18: 99.999
A19: 0.03 | D19: 100.01 | F19: 26.55 | G19: 100.01 | H19: 99.999
A20: 0.03 | D20: 100.011 | F20: 26.55 | G20: 100.011 | H20: 99.999
A21: 0.03 | D21: 100.011 | F21: 26.55 | G21: 100.011 | H21: 99.999
A22: 0.03 | D22: 100.011 | F22: 26.55 | G22: 100.011 | H22: 99.999
A23: 0.03 | D23: 100.012 | F23: 26.55 | G23: 100.012 | H23: 99.999
A24: 0.03 | D24: 100.012 | F24: 26.55 | G24: 100.012 | H24: 99.999
A25: 0.04 | D25: 100.012 | F25: 26.55 | G25: 100.012 | H25: 99.999
A26: 0.04 | D26: 100.013 | F26: 26.55 | G26: 100.013 | H26: 99.999
A27: 0.04 | B27: 26.55 | C27: -2.05 | D27: 100.013 | F27: 26.55 | G27: 100.013 | H27: 99.999
A28: 0.04 | B28: 26.55 | C28: -2.05 | D28: 100.013 | F28: 26.55 | G28: 100.013 | H28: 99.999
A29: 0.04 | B29: 26.56 | C29: -2.05 | D29: 100.014 | F29: 26.56 | G29: 100.014 | H29: 99.999
A30: 0.05 | B30: 26.56 | C30: -2.051 | D30: 100.014 | F30: 26.56 | G30: 100.014 | H30: 99.999
A31: 0.05 | B31: 26.56 | C31: -2.051 | D31: 100.014 | F31: 26.56 | G31: 100.014 | H31: 99.999
A32: 0.05 | B32: 26.57 | C32: -2.052 | D32: 100.015 | F32: 26.57 | G32: 100.015 | H32: 99.999
A33: 0.05 | B33: 26.57 | C33: -2.052 | D33: 100.015 | F33: 26.57 | G33: 100.015 | H33: 99.999
A34: 0.05 | B34: 26.57 | C34: -2.052 | D34: 100.015 | F34: 26.57 | G34: 100.015 | H34: 99.999
A35: 0.05 | B35: 26.57 | C35: -2.053 | D35: 100.015 | F35: 26.57 | G35: 100.015 | H35: 99.999
A36: 0.05 | B36: 26.58 | C36: -2.053 | D36: 100.016 | F36: 26.58 | G36: 100.016 | H36: 99.999
A37: 0.06 | B37: 26.58 | C37: -2.054 | D37: 100.016 | F37: 26.58 | G37: 100.016 | H37: 99.999
A38: 0.06 | B38: 26.58 | C38: -2.054 | D38: 100.016 | F38: 26.58 | G38: 100.016 | H38: 99.999
A39: 0.06 | B39: 26.59 | C39: -2.055 | D39: 100.016 | F39: 26.59 | G39: 100.016 | H39: 99.999
A40: 0.06 | B40: 26.59 | C40: -2.055 | D40: 100.016 | F40: 26.59 | G40: 100.016 | H40: 99.999
A41: 0.06 | B41: 26.59 | C41: -2.056 | D41: 100.016 | F41: 26.59 | G41: 100.016 | H41: 99.999
A42: 0.07 | B42: 26.59 | C42: -2.056 | D42: 100.016 | F42: 26.59 | G42: 100.016 | H42: 99.999
A43: 0.07 | B43: 26.6 | C43: -2.057 | D43: 100.017 | F43: 26.6 | G43: 100.017 | H43: 99.999
A44: 0.07 | B44: 26.6 | C44: -2.057 | D44: 100.017 | F44: 26.6 | G44: 100.017 | H44: 99.999
A45: 0.07 | B45: 26.6 | C45: -2.058 | D45: 100.017 | F45: 26.6 | G45: 100.017 | H45: 99.999
A46: 0.07 | B46: 26.61 | C46: -2.058 | D46: 100.017 | F46: 26.61 | G46: 100.017 | H46: 99.999
A47: 0.07 | B47: 26.61 | C47: -2.059 | D47: 100.017 | F47: 26.61 | G47: 100.017 | H47: 99.999
A48: 0.08 | B48: 26.61 | C48: -2.059 | D48: 100.017 | F48: 26.61 | G48: 100.017 | H48: 99.999
A49: 0.08 | B49: 26.61 | C49: -2.06 | D49: 100.017 | F49: 26.61 | G49: 100.017 | H49: 99.999
A50: 0.08 | B50: 26.62 | C50: -2.06 | D50: 100.017 | F50: 26.62 | G50: 100.017 | H50: 99.999
A51: 0.08 | B51: 26.62 | C51: -2.061 | D51: 100.017 | F51: 26.62 | G51: 100.017 | H51: 99.999
A52: 0.08 | B52: 26.62 | C52: -2.062 | D52: 100.017 | F52: 26.62 | G52: 100.017 | H52: 99.999
A53: 0.08 | B53: 26.63 | C53: -2.062 | D53: 100.017 | F53: 26.63 | G53: 100.017 | H53: 99.999
A54: 0.08 | B54: 26.63 | C54: -2.063 | D54: 100.017 | F54: 26.63 | G54: 100.017 | H54: 99.999
A55: 0.09 | B55: 26.63 | C55: -2.063 | D55: 100.017 | F55: 26.63 | G55: 100.017 | H55: 99.999
A56: 0.09 | B56: 26.63 | C56: -2.064 | D56: 100.017 | F56: 26.63 | G56: 100.017 | H56: 99.999
A57: 0.09 | B57: 26.64 | C57: -2.064 | D57: 100.017 | F57: 26.64 | G57: 100.017 | H57: 99.999
A58: 0.09 | B58: 26.64 | C58: -2.065 | D58: 100.016 | F58: 26.64 | G58: 100.016 | H58: 99.999
A59: 0.09 | B59: 26.64 | C59: -2.066 | D59: 100.016 | F59: 26.64 | G59: 100.016 | H59: 99.999
A60: 0.09 | B60: 26.65 | C60: -2.066 | D60: 100.016 | F60: 26.65 | G60: 100.016 | H60: 99.999
A61: 0.1 | B61: 26.65 | C61: -2.067 | D61: 100.016 | F61: 26.65 | G61: 100.016 | H61: 99.999
A62: 0.1 | B62: 26.65 | C62: -2.067 | D62: 100.016 | F62: 26.65 | G62: 100.016 | H62: 99.999
A63: 0.1 | B63: 26.65 | C63: -2.068 | D63: 100.016 | F63: 26.65 | G63: 100.016 | H63: 99.999
A64: 0.1 | B64: 26.66 | C64: -2.068 | D64: 100.016 | F64: 26.66 | G64: 100.016 | H64: 99.999
A65: 0.1 | B65: 26.66 | C65: -2.069 | D65: 100.015 | F65: 26.66 | G65: 100.015 | H65: 99.999
A66: 0.11 | B66: 26.66 | C66: -2.07 | D66: 100.015 | F66: 26.66 | G66: 100.015 | H66: 99.999
A67: 0.11 | B67: 26.67 | C67: -2.07 | D67: 100.015 | F67: 26.67 | G67: 100.015 | H67: 99.999
A68: 0.11 | B68: 26.67 | C68: -2.071 | D68: 100.015 | F68: 26.67 | G68: 100.015 | H68: 99.999
A69: 0.11 | B69: 26.67 | C69: -2.071 | D69: 100.014 | F69: 26.67 | G69: 100.014 | H69: 99.999
A70: 0.11 | B70: 26.67 | C70: -2.072 | D70: 100.014 | F70: 26.67 | G70: 100.014 | H70: 99.999
A71: 0.11 | B71: 26.68 | C71: -2.072 | D71: 100.014 | F71: 26.68 | G71: 100.014 | H71: 99.999
A72: 0.12 | B72: 26.68 | C72: -2.073 | D72: 100.014 | F72: 26.68 | G72: 100.014 | H72: 99.999
A73: 0.12 | B73: 26.68 | C73: -2.074 | D73: 100.013 | F73: 26.68 | G73: 100.013 | H73: 99.999
A74: 0.12 | B74: 26.69 | C74: -2.074 | D74: 100.013 | F74: 26.69 | G74: 100.013 | H74: 99.999
A75: 0.12 | B75: 26.69 | C75: -2.075 | D75: 100.013 | F75: 26.69 | G75: 100.013 | H75: 99.999
A76: 0.12 | B76: 26.69 | C76: -2.075 | D76: 100.012 | F76: 26.69 | G76: 100.012 | H76: 99.999
A77: 0.12 | B77: 26.69 | C77: -2.076 | D77: 100.012 | F77: 26.69 | G77: 100.012 | H77: 99.999
A78: 0.13 | B78: 26.7 | C78: -2.076 | D78: 100.012 | F78: 26.7 | G78: 100.012 | H78: 99.999
A79: 0.13 | B79: 26.7 | C79: -2.077 | D79: 100.011 | F79: 26.7 | G79: 100.011 | H79: 99.999
A80: 0.13 | B80: 26.7 | C80: -2.077 | D80: 100.011 | F80: 26.7 | G80: 100.011 | H80: 99.999
A81: 0.13 | B81: 26.71 | C81: -2.078 | D81: 100.01 | F81: 26.71 | G81: 100.01 | H81: 99.999
A82: 0.13 | B82: 26.71 | C82: -2.078 | D82: 100.01 | F82: 26.71 | G82: 100.01 | H82: 99.999
A83: 0.13 | B83: 26.71 | C83: -2.079 | D83: 100.01 | F83: 26.71 | G83: 100.01 | H83: 99.999
A84: 0.14 | B84: 26.71 | C84: -2.08 | D84: 100.009 | F84: 26.71 | G84: 100.009 | H84: 99.999
A85: 0.14 | B85: 26.72 | C85: -2.08 | D85: 100.009 | F85: 26.72 | G85: 100.009 | H85: 99.999
A86: 0.14 | B86: 26.72 | C86: -2.081 | D86: 100.008 | F86: 26.72 | G86: 100.008 | H86: 99.999
A87: 0.14 | B87: 26.72 | C87: -2.081 | D87: 100.008 | F87: 26.72 | G87: 100.008 | H87: 99.999
A88: 0.14 | B88: 26.73 | C88: -2.082 | D88: 100.007 | F88: 26.73 | G88: 100.007 | H88: 99.999
A89: 0.14 | B89: 26.73 | C89: -2.082 | D89: 100.007 | F89: 26.73 | G89: 100.007 | H89: 99.999
A90: 0.14 | B90: 26.73 | C90: -2.083 | D90: 100.006 | F90: 26.73 | G90: 100.006 | H90: 99.999
A91: 0.15 | B91: 26.73 | C91: -2.083 | D91: 100.006 | F91: 26.73 | G91: 100.006 | H91: 99.999
A92: 0.15 | B92: 26.74 | C92: -2.083 | D92: 100.005 | F92: 26.74 | G92: 100.005 | H92: 99.999
A93: 0.15 | B93: 26.74 | C93: -2.084 | D93: 100.005 | F93: 26.74 | G93: 100.005 | H93: 99.999
A94: 0.15 | B94: 26.74 | C94: -2.084 | D94: 100.004 | F94: 26.74 | G94: 100.004 | H94: 99.999
A95: 0.15 | B95: 26.74 | C95: -2.085 | D95: 100.004 | F95: 26.74 | G95: 100.004 | H95: 99.999
A96: 0.16 | B96: 26.75 | C96: -2.085 | D96: 100.003 | F96: 26.75 | G96: 100.003 | H96: 99.999
A97: 0.16 | B97: 26.75 | C97: -2.086 | D97: 100.003 | F97: 26.75 | G97: 100.003 | H97: 99.999
A98: 0.16 | B98: 26.75 | C98: -2.086 | D98: 100.002 | F98: 26.75 | G98: 100.002 | H98: 99.999
A99: 0.16 | B99: 26.76 | C99: -2.087 | D99: 100.002 | F99: 26.76 | G99: 100.002 | H99: 99.999
A100: 0.16 | B100: 26.76 | C100: -2.087 | D100: 100.001 | F100: 26.76 | G100: 100.001 | H100: 99.999
A101: 0.16 | B101: 26.76 | C101: -2.088 | D101: 100 | F101: 26.76 | G101: 100 | H101: 99.999
A102: 0.16 | B102: 26.76 | C102: -2.088 | D102: 100 | F102: 26.76 | G102: 100 | H102: 99.999
A103: 0.17 | B103: 26.77 | C103: -2.089 | D103: 99.999 | F103: 26.77 | G103: 99.999 | H103: 99.999
A104: 0.17 | B104: 26.77 | C104: -2.089 | D104: 99.999 | F104: 26.77 | G104: 99.999 | H104: 99.999
A105: 0.17 | B105: 26.77 | C105: -2.089 | D105: 99.998 | F105: 26.77 | G105: 99.998 | H105: 99.999
A106: 0.17 | B106: 26.78 | C106: -2.09 | D106: 99.997 | F106: 26.78 | G106: 99.997 | H106: 99.999
A107: 0.17 | B107: 26.78 | C107: -2.09 | D107: 99.997 | F107: 26.78 | G107: 99.997 | H107: 99.999
A108: 0.18 | B108: 26.78 | C108: -2.091 | D108: 99.996 | F108: 26.78 | G108: 99.996 | H108: 99.999
A109: 0.18 | B109: 26.78 | C109: -2.091 | D109: 99.995 | F109: 26.78 | G109: 99.995 | H109: 99.999
A110: 0.18 | B110: 26.79 | C110: -2.092 | D110: 99.995 | F110: 26.79 | G110: 99.995 | H110: 99.999
A111: 0.18 | B111: 26.79 | C111: -2.092 | D111: 99.994 | F111: 26.79 | G111: 99.994 | H111: 99.999
A112: 0.18 | B112: 26.79 | C112: -2.092 | D112: 99.993 | F112: 26.79 | G112: 99.993 | H112: 99.999
A113: 0.18 | B113: 26.8 | C113: -2.093 | D113: 99.992 | F113: 26.8 | G113: 99.992 | H113: 99.999
A114: 0.19 | B114: 26.8 | C114: -2.093 | D114: 99.992 | F114: 26.8 | G114: 99.992 | H114: 99.999
A115: 0.19 | B115: 26.8 | C115: -2.094 | D115: 99.991 | F115: 26.8 | G115: 99.991 | H115: 99.999
A116: 0.19 | B116: 26.8 | C116: -2.094 | D116: 99.99 | F116: 26.8 | G116: 99.99 | H116: 99.999
A117: 0.19 | B117: 26.81 | C117: -2.095 | D117: 99.99 | F117: 26.81 | G117: 99.99 | H117: 99.999
A118: 0.19 | B118: 26.81 | C118: -2.095 | D118: 99.989 | F118: 26.81 | G118: 99.989 | H118: 99.999
A119: 0.19 | B119: 26.81 | C119: -2.095 | D119: 99.988 | F119: 26.81 | G119: 99.988 | H119: 99.999
A120: 0.19 | B120: 26.82 | C120: -2.096 | D120: 99.987 | F120: 26.82 | G120: 99.987 | H120: 99.999
A121: 0.2 | B121: 26.82 | C121: -2.096 | D121: 99.986 | F121: 26.82 | G121: 99.986 | H121: 99.999
A122: 0.2 | B122: 26.82 | C122: -2.097 | D122: 99.986 | F122: 26.82 | G122: 99.986 | H122: 99.999
A123: 0.2 | B123: 26.82 | C123: -2.097 | D123: 99.985 | F123: 26.82 | G123: 99.985 | H123: 99.999
A124: 0.2 | B124: 26.83 | C124: -2.098 | D124: 99.984 | F124: 26.83 | G124: 99.984 | H124: 99.999
A125: 0.2 | B125: 26.83 | C125: -2.098 | D125: 99.983 | F125: 26.83 | G125: 99.983 | H125: 99.999
A126: 0.21 | B126: 26.83 | C126: -2.098 | D126: 99.982 | F126: 26.83 | G126: 99.982 | H126: 99.999
A127: 0.21 | B127: 26.84 | C127: -2.099 | D127: 99.982 | F127: 26.84 | G127: 99.982 | H127: 99.999
A128: 0.21 | B128: 26.84 | C128: -2.099 | D128: 99.981 | F128: 26.84 | G128: 99.981 | H128: 99.999
A129: 0.21 | B129: 26.84 | C129: -2.1 | D129: 99.98 | F129: 26.84 | G129: 99.98 | H129: 99.999
A130: 0.21 | B130: 26.84 | C130: -2.1 | D130: 99.979 | F130: 26.84 | G130: 99.979 | H130: 99.999
A131: 0.21 | B131: 26.85 | C131: -2.101 | D131: 99.978 | F131: 26.85 | G131: 99.978 | H131: 99.999
A132: 0.21 | B132: 26.85 | C132: -2.101 | D132: 99.977 | F132: 26.85 | G132: 99.977 | H132: 99.999
A133: 0.22 | B133: 26.85 | C133: -2.101 | D133: 99.976 | F133: 26.85 | G133: 99.976 | H133: 99.999
A134: 0.22 | B134: 26.86 | C134: -2.102 | D134: 99.976 | F134: 26.86 | G134: 99.976 | H134: 99.999
A135: 0.22 | B135: 26.86 | C135: -2.102 | D135: 99.975 | F135: 26.86 | G135: 99.975 | H135: 99.999
A136: 0.22 | B136: 26.86 | C136: -2.103 | D136: 99.974 | F136: 26.86 | G136: 99.974 | H136: 99.999
A137: 0.22 | B137: 26.87 | C137: -2.103 | D137: 99.973 | F137: 26.87 | G137: 99.973 | H137: 99.999
A138: 0.23 | B138: 26.87 | C138: -2.103 | D138: 99.972 | F138: 26.87 | G138: 99.972 | H138: 99.999
A139: 0.23 | B139: 26.87 | C139: -2.104 | D139: 99.971 | F139: 26.87 | G139: 99.971 | H139: 99.999
A140: 0.23 | B140: 26.87 | C140: -2.104 | D140: 99.97 | F140: 26.87 | G140: 99.97 | H140: 99.999
A141: 0.23 | B141: 26.88 | C141: -2.105 | D141: 99.969 | F141: 26.88 | G141: 99.969 | H141: 99.999
A142: 0.23 | B142: 26.88 | C142: -2.105 | D142: 99.968 | F142: 26.88 | G142: 99.968 | H142: 99.999
A143: 0.23 | B143: 26.88 | C143: -2.106 | D143: 99.967 | F143: 26.88 | G143: 99.967 | H143: 99.999
A144: 0.24 | B144: 26.89 | C144: -2.106 | D144: 99.966 | F144: 26.89 | G144: 99.966 | H144: 99.999
A145: 0.24 | B145: 26.89 | C145: -2.106 | D145: 99.965 | F145: 26.89 | G145: 99.965 | H145: 99.999
A146: 0.24 | B146: 26.89 | C146: -2.107 | D146: 99.964 | F146: 26.89 | G146: 99.964 | H146: 99.999
A147: 0.24 | B147: 26.89 | C147: -2.107 | D147: 99.963 | F147: 26.89 | G147: 99.963 | H147: 99.999
A148: 0.24 | B148: 26.9 | C148: -2.108 | D148: 99.962 | F148: 26.9 | G148: 99.962 | H148: 99.999
A149: 0.24 | B149: 26.9 | C149: -2.108 | D149: 99.961 | F149: 26.9 | G149: 99.961 | H149: 99.999
A150: 0.24 | B150: 26.9 | C150: -2.109 | D150: 99.96 | F150: 26.9 | G150: 99.96 | H150: 99.999
A151: 0.25 | B151: 26.91 | C151: -2.109 | D151: 99.959 | F151: 26.91 | G151: 99.959 | H151: 99.999
A152: 0.25 | B152: 26.91 | C152: -2.11 | D152: 99.958 | F152: 26.91 | G152: 99.958 | H152: 99.999
A153: 0.25 | B153: 26.91 | C153: -2.11 | D153: 99.957 | F153: 26.91 | G153: 99.957 | H153: 99.999
A154: 0.25 | B154: 26.92 | C154: -2.11 | D154: 99.956 | F154: 26.92 | G154: 99.956 | H154: 99.999
A155: 0.25 | B155: 26.92 | C155: -2.111 | D155: 99.955 | F155: 26.92 | G155: 99.955 | H155: 99.999
A156: 0.26 | B156: 26.92 | C156: -2.111 | D156: 99.954 | F156: 26.92 | G156: 99.954 | H156: 99.999
A157: 0.26 | B157: 26.93 | C157: -2.112 | D157: 99.953 | F157: 26.93 | G157: 99.953 | H157: 99.999
A158: 0.26 | B158: 26.93 | C158: -2.112 | D158: 99.952 | F158: 26.93 | G158: 99.952 | H158: 99.999
A159: 0.26 | B159: 26.93 | C159: -2.113 | D159: 99.951 | F159: 26.93 | G159: 99.951 | H159: 99.999
A160: 0.26 | B160: 26.93 | C160: -2.113 | D160: 99.95 | F160: 26.93 | G160: 99.95 | H160: 99.999
A161: 0.26 | B161: 26.94 | C161: -2.114 | D161: 99.949 | F161: 26.94 | G161: 99.949 | H161: 99.999
A162: 0.26 | B162: 26.94 | C162: -2.114 | D162: 99.948 | F162: 26.94 | G162: 99.948 | H162: 99.999
A163: 0.27 | B163: 26.94 | C163: -2.114 | D163: 99.947 | F163: 26.94 | G163: 99.947 | H163: 99.999
A164: 0.27 | B164: 26.95 | C164: -2.115 | D164: 99.946 | F164: 26.95 | G164: 99.946 | H164: 99.999
A165: 0.27 | B165: 26.95 | C165: -2.115 | D165: 99.945 | F165: 26.95 | G165: 99.945 | H165: 99.999
A166: 0.27 | B166: 26.95 | C166: -2.116 | D166: 99.943 | F166: 26.95 | G166: 99.943 | H166: 99.999
A167: 0.27 | B167: 26.96 | C167: -2.116 | D167: 99.942 | F167: 26.96 | G167: 99.942 | H167: 99.999
A168: 0.28 | B168: 26.96 | C168: -2.117 | D168: 99.941 | F168: 26.96 | G168: 99.941 | H168: 99.999
A169: 0.28 | B169: 26.96 | C169: -2.117 | D169: 99.94 | F169: 26.96 | G169: 99.94 | H169: 99.999
A170: 0.28 | B170: 26.97 | C170: -2.118 | D170: 99.939 | F170: 26.97 | G170: 99.939 | H170: 99.999
A171: 0.28 | B171: 26.97 | C171: -2.118 | D171: 99.938 | F171: 26.97 | G171: 99.938 | H171: 99.999
A172: 0.28 | B172: 26.97 | C172: -2.118 | D172: 99.937 | F172: 26.97 | G172: 99.937 | H172: 99.999
A173: 0.28 | B173: 26.98 | C173: -2.119 | D173: 99.935 | F173: 26.98 | G173: 99.935 | H173: 99.999
A174: 0.29 | B174: 26.98 | C174: -2.119 | D174: 99.934 | F174: 26.98 | G174: 99.934 | H174: 99.999
A175: 0.29 | B175: 26.98 | C175: -2.12 | D175: 99.933 | F175: 26.98 | G175: 99.933 | H175: 99.999
A176: 0.29 | B176: 26.99 | C176: -2.12 | D176: 99.932 | F176: 26.99 | G176: 99.932 | H176: 99.999
A177: 0.29 | B177: 26.99 | C177: -2.12 | D177: 99.931 | F177: 26.99 | G177: 99.931 | H177: 99.999
A178: 0.29 | B178: 26.99 | C178: -2.121 | D178: 99.93 | F178: 26.99 | G178: 99.93 | H178: 99.999
A179: 0.29 | B179: 27 | C179: -2.121 | D179: 99.928 | F179: 27 | G179: 99.928 | H179: 99.999
A180: 0.3 | B180: 27 | C180: -2.122 | D180: 99.927 | F180: 27 | G180: 99.927 | H180: 99.999
A181: 0.3 | B181: 27 | C181: -2.122 | D181: 99.926 | F181: 27 | G181: 99.926 | H181: 99.998
A182: 0.3 | B182: 27.01 | C182: -2.122 | D182: 99.925 | F182: 27.01 | G182: 99.925 | H182: 99.998
A183: 0.3 | B183: 27.01 | C183: -2.123 | D183: 99.924 | F183: 27.01 | G183: 99.924 | H183: 99.997
A184: 0.3 | B184: 27.01 | C184: -2.123 | D184: 99.922 | F184: 27.01 | G184: 99.922 | H184: 99.997
A185: 0.3 | B185: 27.02 | C185: -2.123 | D185: 99.921 | F185: 27.02 | G185: 99.921 | H185: 99.996
A186: 0.3 | B186: 27.02 | C186: -2.124 | D186: 99.92 | F186: 27.02 | G186: 99.92 | H186: 99.996
A187: 0.31 | B187: 27.02 | C187: -2.124 | D187: 99.919 | F187: 27.02 | G187: 99.919 | H187: 99.996
A188: 0.31 | B188: 27.03 | C188: -2.124 | D188: 99.918 | F188: 27.03 | G188: 99.918 | H188: 99.995
A189: 0.31 | B189: 27.03 | C189: -2.125 | D189: 99.916 | F189: 27.03 | G189: 99.916 | H189: 99.995
A190: 0.31 | B190: 27.03 | C190: -2.125 | D190: 99.915 | F190: 27.03 | G190: 99.915 | H190: 99.994
A191: 0.31 | B191: 27.04 | C191: -2.125 | D191: 99.914 | F191: 27.04 | G191: 99.914 | H191: 99.994
A192: 0.31 | B192: 27.04 | C192: -2.126 | D192: 99.913 | F192: 27.04 | G192: 99.913 | H192: 99.993
A193: 0.32 | B193: 27.04 | C193: -2.126 | D193: 99.911 | F193: 27.04 | G193: 99.911 | H193: 99.993
A194: 0.32 | B194: 27.05 | C194: -2.126 | D194: 99.91 | F194: 27.05 | G194: 99.91 | H194: 99.992
A195: 0.32 | B195: 27.05 | C195: -2.127 | D195: 99.909 | F195: 27.05 | G195: 99.909 | H195: 99.992
A196: 0.32 | B196: 27.05 | C196: -2.127 | D196: 99.907 | F196: 27.05 | G196: 99.907 | H196: 99.991
A197: 0.32 | B197: 27.06 | C197: -2.127 | D197: 99.906 | F197: 27.06 | G197: 99.906 | H197: 99.991
A198: 0.33 | B198: 27.06 | C198: -2.128 | D198: 99.905 | F198: 27.06 | G198: 99.905 | H198: 99.991
A199: 0.33 | B199: 27.06 | C199: -2.128 | D199: 99.904 | F199: 27.06 | G199: 99.904 | H199: 99.99
A200: 0.33 | B200: 27.07 | C200: -2.128 | D200: 99.902 | F200: 27.07 | G200: 99.902 | H200: 99.99
... 4300 more rows
